Cogmind - Beta 16 @@@ ROGUE MODE // 2025.11.03 @ 18:53:06 Player: C0-2MO Result: Establishing 0b11! Performance ------------- Evolutions (9) 4500 Regions Visited (34) 6800 Robots Destroyed (286) 1430 Value Destroyed (19784) 19784 Prototype IDs (385) 7700 Alien Tech Used (12) 2400 Bonus (74133) 74133 TOTAL SCORE: 116747 Bonus ------- High Alert Combat Kills 11048 Follower Combat Kills 3821 Entered Garrisons 200 Used RIF Installer 500 Network Hubs Disabled 400 Registered with UFD 300 Met Optimus in HQ 500 Met Zhirov 300 Met Warlord at Base 500 MAIN.C Attacked Warlord 500 Built Enhanced Grunts 300 A7 Reached Mainframe 300 Met R17 at Cetus 500 Met R17 at Research 2000 Met Sigix 2000 Destroyed Superfortress 15000 Met Optimus at Protoforge 1000 Executed Drillbomb Mission 10000 Destroyed MAIN.C Guards 500 Met MAIN.C 5000 Destroyed MAIN.C Shell 5000 Destroyed MAIN.C 10000 Met Architect 300 Destroyed A8 300 Destroyed A5 500 Destroyed A3 800 Destroyed A2 1000 Win 3000 Friendly Fire -1436 Cogmind --------- Core Integrity 148/1600 Matter 159/300 Energy 218/220 System Corruption 8% Temperature Cool (3) Movement Flying (23) Location 0b11 Command Parts ------- > --- POWER (3) -------- Concept Zero-point Core > --- PROPULSION (8) --- Electron Diverter Electron Diverter Electron Diverter Experimental Biomechanical Wings Experimental Biomechanical Wings > --- UTILITY (12) ----- Quantum Shading Machine Spectral Analyzer Experimental Core Analyzer Femtoactuators Graphene Brace > --- WEAPON (3) ------- Experimental Jetlance > --- INVENTORY (5) ---- Vortex Chain Reactor Concept NT7 Matterbank (639) Concept Rapid Grenade Launcher Experimental Jetlance Peak State ------------ > --- POWER ------------ Concept Zero-point Core Concept Zero-point Core Concept Zero-point Core > --- PROPULSION ------- Improved Diametric Drive Cooled Impulse Thruster Cooled Q-thruster Experimental Biomechanical Wings Experimental Biomechanical Wings Experimental Biomechanical Wings Concept Fieldthrust Drive Concept Fieldthrust Drive > --- UTILITY ---------- Concept Antigrav Storage Unit Concept Dimensional Manipulator Spectral Analyzer Experimental Active Sensor Suite Experimental Core Analyzer Experimental ECM Suite Experimental Reaction Control System Concept Cloak Mesh Concept Cloak Mesh Graphene Brace Concept Energy Mantle > --- WEAPON ----------- Concept Disintegration Ray Sigix Broadsword > --- INVENTORY -------- Light Quantum Reactor Vortex Chain Reactor Concept Zero-point Core Field Propulsion Array Electron Diverter Cooled Impulse Thruster Experimental Surge Thruster Experimental Surge Thruster Concept Chromion Battery Concept NT7 Matterbank Quantum Shading Machine Concept Networked Targeting System Concept Weapon Articulator Experimental Armor Integrity Analyzer Femtoactuators Femtoactuators Experimental Reaction Control System Experimental Focal Shield Concept Plasma Driver Concept Rapid Grenade Launcher Experimental Jetlance Experimental Jetlance [Rating: 316] Favorites ----------- Power Concept Zero-point Core Engine Light Ion Engine Power Core Concept Zero-point Core Reactor Compact Particle Reactor Propulsion Cooled VTOL Module Treads Advanced Treads Leg Experimental Armored Exoskeleton Wheel Subdweller Monowheel Hover Unit Concept Gyrokinetic System Flight Unit Cooled VTOL Module Utility Advanced Hacking Suite Device Structural Scanner Storage High-capacity Storage Unit Processor Experimental Signal Interpreter Hackware Advanced Hacking Suite Protection Medium Regenerative Plating Artifact Phase Armor Weapon Nanosword Energy Gun Warp Gun Energy Cannon Matter Neutralizer Ballistic Gun Light Assault Rifle Ballistic Cannon Concept Miniperforator Launcher Concept Rapid Grenade Launcher Special Weapon Improved Remote Datajack Impact Weapon Hammer Slashing Weapon Nanosword Piercing Weapon Experimental Jetlance Special Melee Weapon Improved Datajack Build | -11 -10 -10 -8 -8 -6 -6 -6 -6 -6 -6 -6 -5 -5 -5 -5 -5 -5 -4 -4 -4 -4 -4 -4 -4 -3 -3 -3 -3 -2 -2 -2 -1 -1 -1 ------- Run | Yrd Mat Sub Rec Scr Fac Was Fac Ext Cet Arc Hub Fac Was Fac Upp Upp War Pro Fac Was Fac Upp Upp Zhi Pro Res Tes Gar Res Qua Frg Acc Com Ac0 Slots Evolved 18 | . . . . . 8 . . . . . . 2 . . . . . . 2 . . . . . . 2 . . 2 . . 2 . . Power 2 | . . . . . . . . . . . . 1 . . . . . . . . . . . . . 1 . . . . . . . . Propulsion 6 | . . . . . 4 . . . . . . 1 . . . . . . . . . . . . . 1 . . . . . . . . Utility 10 | . . . . . 4 . . . . . . . . . . . . . 2 . . . . . . . . . 2 . . 2 . . Weapon . | . . . . . . . . . . . . . . . . . . . . . . . . . . . . . . . . . . . Parts Attached 246 | 4 13 5 4 2 20 2 5 7 4 7 2 7 2 4 2 . 6 . 4 . 8 . . 4 1 13 10 1 1 6 79 2 9 12 Power 19 | . 1 1 . . 3 . . . . 2 . . . 1 . . . . . . . . . . . 3 . . . . 5 . 2 1 Engine 2 | . 1 1 . . . . . . . . . . . . . . . . . . . . . . . . . . . . . . . . Core 12 | . . . . . 2 . . . . 1 . . . 1 . . . . . . . . . . . 1 . . . . 5 . 1 1 Reactor 5 | . . . . . 1 . . . . 1 . . . . . . . . . . . . . . . 2 . . . . . . 1 . Propulsion 63 | 2 3 . 2 2 5 1 2 1 . . . 3 2 . 1 . 2 . 1 . . . . . . 4 2 . 1 . 23 1 . 5 Treads 3 | 2 . . 1 . . . . . . . . . . . . . . . . . . . . . . . . . . . . . . . Leg 2 | . . . . . . . . . . . . . . . . . . . . . . . . . . . . . . . 2 . . . Wheel 4 | . . . 1 2 . . . . . . . . . . . . . . . . . . . . . . 1 . . . . . . . Hover 12 | . . . . . . . . . . . . . . . . . . . . . . . . . . . . . . . 12 . . . Flight 42 | . 3 . . . 5 1 2 1 . . . 3 2 . 1 . 2 . 1 . . . . . . 4 1 . 1 . 9 1 . 5 Utility 113 | . 4 2 1 . 11 1 1 3 2 5 2 4 . 2 1 . 1 . 3 . 6 . . 4 1 3 4 . . 4 36 1 6 5 Device 64 | . 1 2 . . 2 1 . 1 1 1 2 2 . 1 . . 1 . 2 . 6 . . 2 1 2 2 . . 1 23 1 5 4 Storage 9 | . . . 1 . . . . . . 1 . . . 1 . . . . . . . . . 1 . 1 2 . . . 2 . . . Processor 14 | . 1 . . . 3 . . . . . . . . . . . . . . . . . . . . . . . . . 8 . 1 1 Hackware 14 | . 1 . . . 4 . 1 1 . 2 . 2 . . . . . . 1 . . . . . . . . . . 1 1 . . . Protection 10 | . 1 . . . 2 . . 1 1 1 . . . . 1 . . . . . . . . 1 . . . . . . 2 . . . Artifact 2 | . . . . . . . . . . . . . . . . . . . . . . . . . . . . . . 2 . . . . Weapon 51 | 2 5 2 1 . 1 . 2 3 2 . . . . 1 . . 3 . . . 2 . . . . 3 4 1 . 2 15 . 1 1 Energy Gun 3 | . . . . . . . . . 1 . . . . . . . . . . . . . . . . . 1 . . . . . 1 . Energy Cannon 5 | . . . . . . . . . . . . . . . . . 1 . . . 1 . . . . . 2 . . . 1 . . . Ballistic Gun 7 | 2 3 1 . . . . . . 1 . . . . . . . . . . . . . . . . . . . . . . . . . Ballistic Cannon 6 | . . . . . . . . 1 . . . . . . . . . . . . . . . . . . 1 . . 1 3 . . . Launcher 10 | . . 1 . . . . . 1 . . . . . 1 . . 1 . . . . . . . . . . . . . 6 . . . Special Weapon 6 | . 1 . . . . . . 1 . . . . . . . . 1 . . . 1 . . . . . . . . . 2 . . . Impact Weapon 1 | . 1 . . . . . . . . . . . . . . . . . . . . . . . . . . . . . . . . . Slashing Weapon 8 | . . . 1 . . . 1 . . . . . . . . . . . . . . . . . . 3 . . . 1 1 . . 1 Piercing Weapon 3 | . . . . . 1 . . . . . . . . . . . . . . . . . . . . . . . . . 2 . . . Special Melee Weapon 2 | . . . . . . . 1 . . . . . . . . . . . . . . . . . . . . 1 . . . . . . Unidentified Prototypes 56 | . . 1 . . 1 . 1 . 4 4 . 1 . . . . 5 . 1 . . . . 3 . 6 7 . . 6 16 . . . Corrupted Parts 1 | . . . . . . . . . . . . . . . . . . . . . . . . . . . . 1 . . . . . . System Corruption 1 | . . . . . . . . . . . . . . . . . . . . . . . . . . . . 1 . . . . . . Parts Lost 47 | . . 4 . . 4 . . 2 1 . 2 . . 1 1 . . . . . 1 . . . 1 1 . . . 1 5 . 1 22 Power 5 | . . 1 . . . . . . . . . . . . . . . . . . . . . . . . . . . . . . 1 3 Propulsion 18 | . . 1 . . 3 . . 2 . . 2 . . 1 1 . . . . . . . . . . . . . . . 1 . . 7 Utility 16 | . . 1 . . 1 . . . . . . . . . . . . . . . . . . . 1 1 . . . 1 2 . . 9 Weapon 8 | . . 1 . . . . . . 1 . . . . . . . . . . . 1 . . . . . . . . . 2 . . 3 Highest Loss Streak 10 | . . 2 . . 2 . . 1 1 . 2 . . 1 1 . . . . . 1 . . . 1 1 . . . 1 2 . 1 10 To Critical Strikes . | . . . . . . . . . . . . . . . . . . . . . . . . . . . . . . . . . . . Average Backups 11 | . 3 4 7 14 5 4 4 4 4 5 5 4 4 4 5 7 9 10 9 10 9 10 10 9 9 8 10 17 16 17 17 22 21 20 Power . | . . . . . . . . . . . 1 1 1 1 1 1 1 1 1 1 1 2 2 1 1 . . . . . . 2 1 2 Propulsion 1 | . . 1 3 5 . . . . . . . . . . . . . . . 1 1 1 1 1 1 . 1 2 2 3 1 2 3 4 Utility 4 | . 1 . . 4 2 1 . 1 1 2 2 2 2 2 2 3 3 4 3 4 3 4 4 3 3 3 5 7 6 7 8 11 10 8 Weapon 2 | . 1 2 1 1 1 1 1 1 1 2 2 1 1 1 1 2 3 3 2 2 1 2 2 2 2 1 2 5 5 3 4 5 5 4 Tool/Special . | . . . . . . . . . . . . . . . . . . . . . . . . . . . . . . . . . . . Unused Backups 59 | . 3 . . . 2 . . 1 . . . . . 2 . . . . 1 1 1 . . . . 2 1 . . 4 33 . . 8 Power 5 | . . . . . . . . 1 . . . . . . . . . . . . . . . . . . . . . . 2 . . 2 Propulsion 13 | . . . . . . . . . . . . . . . . . . . . . 1 . . . . 1 . . . . 10 . . 1 Utility 25 | . 2 . . . 1 . . . . . . . . 2 . . . . . 1 . . . . . 1 1 . . 1 13 . . 3 Weapon 15 | . 1 . . . 1 . . . . . . . . . . . . . 1 . . . . . . . . . . 2 8 . . 2 Tool/Special 1 | . . . . . . . . . . . . . . . . . . . . . . . . . . . . . . 1 . . . . Average Slot Usage (%) 87 | . 79 94 86 63 90 84 97 96 87 82 80 75 88 94 87 90 89 95 90 90 88 90 90 90 89 83 86 86 87 89 88 91 91 85 Engine 1 | . 3 9 3 . . . . . . . . 4 5 . . . . . . . . . . . . . . . . . . . . . Core 6 | . . . . . 5 6 6 6 6 5 5 5 5 5 5 5 5 5 4 4 4 4 4 4 4 5 8 8 8 8 12 12 11 10 Reactor 1 | . . . . . . . . . . . . . . 4 5 5 5 5 4 4 4 4 4 4 4 4 4 4 4 3 . . . . Treads 1 | . 12 . 7 11 . . . . . . . . . . . . . . . . . . . . . . . . . . . . . . Wheel 1 | . . . 8 16 . . . . . . . . . . . . . . . . . . . . . . . . . . . . . . Hover 4 | . . . . . . . . . . . . . . . . . . . . . . . . . . . . . . . 19 . . . Flight 23 | . 14 27 12 . 35 31 38 36 33 27 24 21 33 39 34 35 35 40 32 31 31 31 31 31 31 29 29 30 28 28 9 32 32 29 Device 13 | . 7 15 14 1 8 13 13 13 7 5 10 10 10 10 10 10 10 10 12 13 12 13 13 14 17 15 17 13 19 23 15 23 30 27 Storage 3 | . . . 7 14 . . . . . . . . . . 5 5 5 5 4 4 4 4 4 4 4 4 4 4 4 4 4 4 4 3 Processor 5 | . 4 . . . 5 6 6 6 6 5 5 5 5 5 5 5 5 5 4 4 4 4 4 4 4 4 4 4 4 4 11 8 8 8 Hackware 7 | . 6 4 . . 14 13 13 13 13 15 16 15 15 14 10 10 10 10 13 13 13 13 13 11 9 8 8 8 8 11 5 8 1 . Protection 3 | . 1 8 5 . 5 6 6 6 6 10 5 4 5 4 3 5 5 5 4 4 4 4 4 5 4 4 2 7 8 . 2 . . . Ballistic Gun 2 | . 24 11 3 1 . . . . 2 . 1 . . . . . . . . . . . . . . . . . . . . . . . Impact Weapon 3 | . 1 14 14 14 4 . . . . . . . . . . . . . . . . . . . . . . . . . . . . . Slashing Weapon 2 | . . . 9 2 4 . 1 5 3 5 3 5 5 5 4 5 4 5 4 4 4 4 4 4 4 4 3 3 4 . 1 4 3 1 Special Melee Weapon 1 | . . . . . . . 5 4 5 5 5 5 5 5 5 5 4 5 4 4 1 . . . . . . . . . . . . . Peak Build Rating 316 | 4 9 12 16 16 48 61 64 64 66 86 86 99 109 120 111 109 129 130 145 145 151 149 149 159 158 184 193 202 203 226 283 303 305 316 Average Rating 136 | 3 6 9 13 12 43 56 59 60 58 84 81 89 103 117 106 108 110 129 142 144 146 149 149 151 152 174 183 192 201 202 246 302 297 281 On Entrance 120 | . 4 9 10 16 11 45 61 62 62 58 86 86 99 109 111 108 109 129 130 145 145 149 149 149 153 158 183 189 194 203 201 280 303 304 Avg Prop Armor Cover (%) 7 | 29 25 . 17 20 2 . 3 3 . 8 . . 6 6 . . . . 1 . . . . . . 2 . . . . 2 . . . Naked Turns . | . . . . . . . . . . . . . . . . . . . . . . . . . . . . . . . . . . . Heaviest Build 110 | 3 7 9 85 86 20 19 20 25 21 25 25 21 21 42 44 38 42 42 44 44 53 47 47 49 51 65 97 98 86 95 110 93 95 104 Greatest Support 130 | 3 8 8 20 32 28 31 31 30 25 25 33 37 43 49 42 39 49 53 54 54 55 55 55 55 55 90 90 93 96 96 130 94 95 98 Greatest Overweight (x) 8 | . . 1 4 5 . . . . . 8 . . . . 1 . . . . . . . . . . . 2 1 . . 4 . . 1 Average Overweight (x) . | . . . . 3 . . . . . 2 . . . . . . . . . . . . . . . . . . . . . . . . Largest Inventory Capacity 25 | 5 5 5 25 25 25 5 5 5 5 5 5 5 5 10 10 10 10 10 10 10 10 10 10 10 10 10 20 20 20 20 25 25 25 25 Average Capacity 14 | 5 5 5 16 25 5 5 5 5 5 5 5 5 5 5 10 10 10 10 10 10 10 10 10 10 10 10 13 20 20 20 22 25 25 24 Most Carried 25 | 2 5 5 9 21 20 5 5 5 5 5 5 5 4 6 8 9 10 10 10 10 10 10 10 10 10 10 18 20 19 20 25 24 25 25 Average Carried 11 | . 3 4 7 14 5 4 4 4 4 4 5 4 4 4 5 8 9 10 9 9 9 10 10 9 9 9 10 18 17 19 18 22 21 21 Final Capacity 25 | 5 5 5 25 25 5 5 5 5 5 5 5 5 5 10 10 10 10 10 10 10 10 10 10 10 10 10 20 20 20 20 25 25 25 5 Final Carried 25 | 2 5 5 9 21 4 5 5 4 5 5 5 4 4 5 8 9 10 10 10 10 10 10 10 10 9 10 18 19 18 19 25 23 24 5 Class Distribution -------------------- 19% | Hacker-Scout 14% | Hacker-Sprinter 10% | Scavenger-Ninja 10% | Commander-Mutant 9% | Hacker-Ninja 9% | Scavenger-Scout 6% | Scavenger-Mutant 6% | Mutant 4% | Scavenger-Sprinter Dominant Class ---------------- Scavenger-Mutant | -10/Materials Mutant | -10/Subcaves Commander-Mutant | -8/Recycling Commander-Mutant | -8/Scraptown Hacker-Sprinter | -6/Factory Hacker-Scout | -6/Waste Hacker-Scout | -6/Factory Commander-Scout | -6/Extension Commander-Sprinter | -6/Cetus Hacker-Mutant | -6/Archives Hacker-Scout | -6/Hub_04(d) Hacker-Scout | -5/Factory Hacker-Scout | -5/Waste Hacker-Sprinter | -5/Factory Scavenger-Sprinter | -5/Upper Caves Scavenger-Sprinter | -5/Upper Caves Scavenger-Sprinter | -5/Warlord Scavenger-Sprinter | -4/Proximity Caves Hacker-Scout | -4/Factory Hacker-Scout | -4/Waste Hacker-Sprinter | -4/Factory Hacker-Scout | -4/Upper Caves Hacker-Scout | -4/Upper Caves Hacker-Scout | -4/Zhirov Hacker-Ninja | -3/Proximity Caves Hacker-Sprinter | -3/Research Hacker-Ninja | -3/Testing Hacker-Sprinter | -3/Garrison Hacker-Ninja | -2/Research Hacker-Scout | -2/Quarantine Scavenger-Scout | -2/Protoforge Hacker-Ninja | -1/Access Scavenger-Ninja | -1/Command Infiltrator-Scout | -1/Access_0 Resources | -11 -10 -10 -8 -8 -6 -6 -6 -6 -6 -6 -6 -5 -5 -5 -5 -5 -5 -4 -4 -4 -4 -4 -4 -4 -3 -3 -3 -3 -2 -2 -2 -1 -1 -1 ----------- Run | Yrd Mat Sub Rec Scr Fac Was Fac Ext Cet Arc Hub Fac Was Fac Upp Upp War Pro Fac Was Fac Upp Upp Zhi Pro Res Tes Gar Res Qua Frg Acc Com Ac0 Matter Collected 16647 | 256 242 229 47 57 215 . 110 214 60 80 86 94 30 101 52 10 . 91 56 . 130 40 . . 12 325 115 554 20 200 12500 30 480 211 Remotely 1788 | . . . . . . . . . . . . . . . . . . . . . . . . . . . . . . . 1788 . . . Salvage Created 17809 | 103 309 39 . . 136 . . 236 20 45 96 206 . 361 66 . . . 56 . 137 . . . . 274 203 477 112 862 12200 43 1723 105 Parts 842 | 5 20 3 . . 8 . . 16 . 16 6 10 . 11 5 . . . 7 . 8 . . . . 18 9 9 . 55 594 2 37 3 Haulers Intercepted 7 | . 1 . . . . . . . . . . 1 . . . . . . . . . . . . . 2 1 . 1 . 1 . . . Recyclers Shooed 2 | . 2 . . . . . . . . . . . . . . . . . . . . . . . . . . . . . . . . . Parts Field Recycled . | . . . . . . . . . . . . . . . . . . . . . . . . . . . . . . . . . . . Retrieved Matter . | . . . . . . . . . . . . . . . . . . . . . . . . . . . . . . . . . . . Parts Self-Destructed 19 | . . 15 . . . . . . . . . . . . 1 . . . . . . . . . 3 . . . . . . . . . Prevented 3 | . . . . . . . . . . . . . . . . . . . . . . . . . 3 . . . . . . . . . Parts Restored 9 | . . . . . . . . . . . . . . . . . . . . . . . . . . . . . . . 9 . . . Faulty 9 | . . . . . . . . . . . . . . . . . . . . . . . . . . . . . . . 9 . . . Kills | -11 -10 -10 -8 -8 -6 -6 -6 -6 -6 -6 -6 -5 -5 -5 -5 -5 -5 -4 -4 -4 -4 -4 -4 -4 -3 -3 -3 -3 -2 -2 -2 -1 -1 -1 ------- Run | Yrd Mat Sub Rec Scr Fac Was Fac Ext Cet Arc Hub Fac Was Fac Upp Upp War Pro Fac Was Fac Upp Upp Zhi Pro Res Tes Gar Res Qua Frg Acc Com Ac0 Combat Hostiles Destroyed 217 | . 9 2 . . . . . 2 . . 1 . . 2 5 . . . 1 . . . . . . . . 6 . 12 171 . 2 4 Melee 17 | . . . . . . . . 2 . . . . . 1 . . . . . . . . . . . . . . . . 10 . 2 2 Guns 24 | . 9 . . . . . . . . . . . . . . . . . . . . . . . . . . . . 11 4 . . . Cannons 135 | . . . . . . . . . . . . . . . . . . . . . . . . . . . . 6 . . 129 . . . AOE 38 | . . 2 . . . . . . . . 1 . . 1 5 . . . 1 . . . . . . . . . . . 28 . . . Classes Destroyed 29 | 2 5 1 . . 2 . . 1 . . . . . . . . . . 1 . . . . . . . 1 . . 1 14 . 1 . Worker 1 | . . . . . . . . . . . . . . . . . . . . . . . . . . . . . . . . . 1 . Builder 13 | . . . . . 2 . . 4 . . . . . . . . . . 1 . 1 . . . . 5 . . . . . . . . Tunneler 1 | 1 . . . . . . . . . . . . . . . . . . . . . . . . . . . . . . . . . . Hauler 7 | . 1 . . . . . . . . . . 1 . . . . . . . . . . . . . 2 1 . 1 . 1 . . . Recycler 3 | 1 . . . . . . . . . . . . . 2 . . . . . . . . . . . . . . . . . . . . Carrier 1 | . . . . . . . . . . . . . . . . . . . . . . . . . . . . . . . 1 . . . Mechanic 10 | . 1 . . . 1 . . . . . . . . . . . . . . . . . . . . . . . . . 8 . . . Operator 5 | . 2 . . . . . . . . . 1 . . . . . . . . . . . . . . . . . . . 1 . 1 . Drone 15 | . . . . . . . . . . . . . . . . . . . 1 . . . . . . . . . . . 14 . . . Watcher 19 | . . . . . 1 . . 1 1 . 1 4 . 1 . . . . 1 . 3 . . . . . 1 . . . . 1 4 . Swarmer 30 | . 6 2 . . . . . . . . . . . 1 5 . . . . . . . . . . . . . . . 16 . . . Cutter 2 | . . . . . . . . . . . . . . . . . . . . . . . . . . . . . . . 2 . . . Saboteur 3 | . . . . . . . . . . . . . . . . . . . . . . . . . . . . . . . 3 . . . Grunt 36 | . 3 . . . . . . 1 . . 1 . . 1 . . . . . . . . . . . . . 6 . . 24 . . . Brawler 8 | . . . . . . . . . . . . . . . . . . . . . . . . . . . . . . . 8 . . . Duelist 3 | . . . . . . . . . . . . . . . . . . . . . . . . . . . . . . . 3 . . . Protector 7 | . . . . . . . . . . . . . . . . . . . . . . . . . . . . . . . 7 . . . Researcher 9 | . . . . . . . . . . . . . . . . . . . . . . . . . . . 1 . . . 8 . . . Sentry 16 | . . . . . . . . 1 . . . . . . . . . . . . . . . . . . . . . . 15 . . . Demolisher 2 | . . . . . . . . . . . . . . . . . . . . . . . . . . . . . . . 2 . . . Specialist 3 | . . . . . . . . . . . . . . . . . . . . . . . . . . . . . . . 3 . . . Hunter 16 | . . . . . . . . . . . . . . . . . . . . . . . . . . . . . . . 16 . . . Programmer 9 | . . . . . . . . . . . . . . . . . . . . . . . . . . . . . . . 9 . . . Quarantine Guard 10 | . . . . . . . . . . . . . . . . . . . . . . . . . . . . . . 10 . . . . Lightning 2 | . . . . . . . . . . . . . . . . . . . . . . . . . . . . . . 2 . . . . Hotshot 2 | . . . . . . . . . . . . . . . . . . . . . . . . . . . . . . . 2 . . . Decapitator 3 | . . . . . . . . . . . . . . . . . . . . . . . . . . . . . . . 3 . . . Immortal 1 | . . . . . . . . . . . . . . . . . . . . . . . . . . . . . . . 1 . . . Striker 13 | . . . . . . . . . . . . . . . . . . . . . . . . . . . . . . . 13 . . . Executioner 20 | . . . . . . . . . . . . . . . . . . . . . . . . . . . . . . . 20 . . . Alpha 7 2 | . . . . . . . . . . . . . . . . . . . . . . . . . . . . . . . 2 . . . V-Series 8 | . . . . . . . . . . . . . . . . . . . . . . . . . . . . . . . 8 . . . Subdweller 1 | . . 1 . . . . . . . . . . . . . . . . . . . . . . . . . . . . . . . . Scrapoid 3 | . . . . . . . . . . . . . . . . . . . . . . . . . . . . . . . 3 . . . Best Kill Streak 37 | 2 3 2 . . 2 . . 3 1 . 1 3 . 1 5 . . . 1 . 2 . . . . 3 2 4 1 2 37 1 2 2 Combat Bots Only 34 | . 3 2 . . . . . 2 . . 1 . . 1 5 . . . 1 . . . . . . . . 4 . 2 34 . 2 2 Max Kills in Single Turn 3 | 1 1 2 . . 1 . . 1 1 1 1 1 . 1 3 . . . 1 . 1 . . . . 1 1 2 1 1 3 1 1 1 Gunslinging . | . . . . . . . . . . . . . . . . . . . . . . . . . . . . . . . . . . . Exploded 3 | . . 2 . . . . . . . . 1 . . 1 3 . . . 1 . . . . . . . . . . . 3 . . . Melee 1 | . . . . . . . . 1 . . . . . 1 . . . . . . . . . . . . . . . . 1 . 1 1 Uniques/NPCs Destroyed 7 | . . . . . . . . . . 1 . . . . . . . . . . . . . . . . . . . . . . 2 4 A7 (-6/Archives) MAIN.C Shell (-1/Command) MAIN.C (-1/Command) A5 (-1/Access_0) A8 (-1/Access_0) A3 (-1/Access_0) A2 (-1/Access_0) Combat | -11 -10 -10 -8 -8 -6 -6 -6 -6 -6 -6 -6 -5 -5 -5 -5 -5 -5 -4 -4 -4 -4 -4 -4 -4 -3 -3 -3 -3 -2 -2 -2 -1 -1 -1 -------- Run | Yrd Mat Sub Rec Scr Fac Was Fac Ext Cet Arc Hub Fac Was Fac Upp Upp War Pro Fac Was Fac Upp Upp Zhi Pro Res Tes Gar Res Qua Frg Acc Com Ac0 Hostile Shots Fired 965 | . 49 9 . . 54 1 21 33 . . . 7 . 24 2 . . 4 15 . 28 . . . 14 17 1 16 14 4 212 . 39 401 Missed 447 | . 11 3 . . 38 1 19 19 . . . 4 . 10 . . . 2 6 . 16 . . . 8 8 1 9 7 3 90 . 20 172 Intercepted 8 | . . . . . . . . . . . . . . . . . . . . . . . . . . . . . . . 8 . . . Hits 518 | . 38 6 . . 16 . 2 14 . . . 3 . 14 2 . . 2 9 . 12 . . . 6 9 . 7 7 1 122 . 19 229 Melee 10 | . . . . . . . . . . . . . . . . . . . . . . . . . . . . . 4 . 6 . . . Projectile 508 | . 38 6 . . 16 . 2 14 . . . 3 . 14 2 . . 2 9 . 12 . . . 6 9 . 7 3 1 116 . 19 229 AOE 2 | . . . . . . . . . . . . . . . . . . . . . . . . . . . . . . . 2 . . . Critical Strikes 42 | . 1 . . . 1 . . . 3 . . 1 . 2 . . . . . . 3 . . . . . . . 3 . 12 . 1 15 Actively Blocked 19 | . 1 . . . . . . . . . . . . . . . . . . . . . . . . . . . 1 . 1 . 1 15 Part Disruptions 4 | . . . . . . . . . . . . . . . . . . . . . . . . . . . . . . . . . 3 1 Damage Taken 11710 | . 375 304 . . 202 . 18 176 85 . 173 58 . 301 31 . . 47 123 . 216 . . . 135 249 . 137 207 82 3499 . 406 4886 Core 2149 | . 80 88 . . . . . 29 . . . 20 . 65 14 . . . 39 . . . . . . 56 . 39 61 . 307 . 127 1224 Absorbed by Shields 1455 | . . . . . . . . 84 37 . . . . . . . . . . . . . . . . . . . . . . . 127 1207 Redirected to Shielding 216 | . 3 1 . . . . . . . . . . . . . . . . . . . . . . . . . 18 45 . 149 . . . Ignored by Resistances 1400 | . . . . . . . . . . . . . . . . . . . . . . . . . . . . . . . 561 . 245 594 Regen/Repaired (Parts) 2509 | . 18 . . . 64 . 50 . . . 12 133 41 104 4 . 3 24 27 8 164 . . . 5 112 . 39 2 199 1077 28 . 395 Core Remaining (%) 72 | 100 . . . 32 . . . . . . 96 . . . . . . 90 . . . . . . 96 . . 92 . . 65 . . 9 Volleys Fired 856 | 4 109 15 . . . . . 15 1 . 10 . . 1 2 . 1 . . . 4 . . . . 4 13 6 . 184 444 . 12 31 Largest 2 | 2 2 1 . . . . . 1 1 . 1 . . 1 1 . 1 . . . 1 . . . . 1 2 1 . 1 2 . 1 1 Hottest 240 | 40 100 30 . . . . . 44 240 . 35 . . 33 33 . 50 . . . 105 . . . . 105 205 100 . 105 140 . 140 140 Shots Fired 900 | 8 116 15 . . . . . 15 1 . 10 . . 1 2 . 1 . . . 4 . . . . 4 13 6 . 184 477 . 12 31 Gun 426 | 8 107 8 . . . . . . 1 . 10 . . . . . . . . . . . . . . . . . . 177 90 . . 25 Cannon 420 | . . . . . . . . 13 . . . . . . . . 1 . . . 4 . . . . 2 13 6 . 7 356 . 12 6 Launcher 38 | . . 7 . . . . . 1 . . . . . 1 2 . . . . . . . . . . . . . . . 27 . . . Special 16 | . 9 . . . . . . 1 . . . . . . . . . . . . . . . . . 2 . . . . 4 . . . Kinetic 494 | 8 107 8 . . . . . 13 . . 10 . . . . . . . . . . . . . . . 1 6 . . 341 . . . Thermal 335 | . 9 . . . . . . . 1 . . . . . . . . . . . 4 . . . . 2 12 . . 184 105 . 12 6 Explosive 37 | . . 7 . . . . . . . . . . . 1 2 . . . . . . . . . . . . . . . 27 . . . Electromagnetic 1 | . . . . . . . . 1 . . . . . . . . . . . . . . . . . . . . . . . . . . Entropic 26 | . . . . . . . . . . . . . . . . . 1 . . . . . . . . . . . . . . . . 25 Robot Hit Streak 33 | 6 11 6 . . . . . 7 . . 1 . . . 2 . . . . . . . . . . 4 3 6 . 3 33 . . 24 Robot Miss Streak 15 | 1 3 1 . . . . . . . . 3 . . 4 . . . . . . . . . . . . 2 8 . . 15 . . 4 Penetration Max 2 | . . . . . . . . . . . . . . . . . . . . . . . . . . . . 1 . . 2 . . . Secondary Targets 2 | . 2 . . . . . . . . . . . . . . . . . . . . . . . . . . . . . . . . . Max Gunslinging Chain 1 | . 1 . . . . . . . . . . . . . . . . . . . . . . . . . . . . . . . . . Shots Hit Robots 678 | 6 76 7 . . 7 . . 55 1 11 1 9 . 10 2 . . . 5 . 5 . . . . 11 6 31 4 3 350 1 31 46 Core Hits 764 | 3 22 3 . . 2 . . 4 1 1 7 5 . 5 6 . . . 2 . 3 . . . . 3 4 11 1 51 594 1 17 18 Critical Kills 154 | . . . . . . . . . . . . . . . . . . . . . . . . . . . 1 6 . 5 140 . . 2 Critical Parts Destroyed 203 | . 1 . . . 1 . . . . . . . . . . . . . . . . . . . . . . 7 . 8 186 . . . Critical Strikes 451 | . 1 1 . . 1 . . . . . . . . . . . . . . . . . . . . 1 2 13 1 18 386 . 8 19 Meltdown 2 | . . . . . . . . . . . . . . . . . . . . . . . . . . . . . . . . . . 2 Destroy 412 | . . 1 . . . . . . . . . . . . . . . . . . . . . . . . 1 13 . 18 379 . . . Smash 2 | . 1 . . . 1 . . . . . . . . . . . . . . . . . . . . . . . . . . . . . Sever 3 | . . . . . . . . . . . . . . . . . . . . . . . . . . 1 1 . 1 . . . . . Impale 32 | . . . . . . . . . . . . . . . . . . . . . . . . . . . . . . . 7 . 8 17 Melee Attacks 816 | . 11 112 3 . 73 . 19 89 3 11 7 17 . 39 5 . . 10 32 . 41 2 1 . . 35 39 46 11 15 81 6 46 62 Impact 147 | . 11 112 3 . 21 . . . . . . . . . . . . . . . . . . . . . . . . . . . . . Slashing 462 | . . . . . 48 . 5 45 3 1 7 13 . 39 5 . . 10 31 . 41 2 1 . . 35 39 21 11 15 40 6 25 19 Piercing 118 | . . . . . 4 . 13 . . . . . . . . . . . . . . . . . . . . . . . 37 . 21 43 Sneak Attacks 139 | . 1 . . . 4 . . 49 . 11 . 6 . 4 . . . . 3 . 4 . . . . 8 1 25 1 . 17 1 4 . Combat Hostiles 3 | . . . . . . . . 1 . . . . . 2 . . . . . . . . . . . . . . . . . . . . Follow-up Attacks 3 | . . . . . 1 . . . . . . . . . . . . . . . . . . . . . . . . . . . . 2 Damage Inflicted 35516 | 61 678 256 . . 378 . . 808 85 87 268 534 . 970 300 . . . 1021 . 496 . . . . 1266 520 94 407 3652 18371 212 3166 1886 Guns 7112 | 61 624 76 . . . . . . . . 30 . . . . . . . . . . . . . . . . . . 3605 2089 . . 627 Cannons 6461 | . . . . . . . . . . . . . . . . . . . . . . . . . . . 4 94 . . 6363 . . . Explosions 8908 | . . 180 . . . . . . . . 238 . . 124 300 . . . 599 . . . . . . . . . . 47 7420 . . . Melee 13035 | . 54 . . . 378 . . 808 85 87 . 534 . 846 . . . . 422 . 496 . . . . 1266 516 . 407 . 2499 212 3166 1259 Ramming . | . . . . . . . . . . . . . . . . . . . . . . . . . . . . . . . . . . . Kinetic 7252 | 61 624 76 . . . . . . . . 30 . . . . . . . . . . . . . . . 4 94 . . 6363 . . . Thermal 6175 | . . . . . . . . . . . . . . . . . . . 481 . . . . . . . . . . 3605 2089 . . . Explosive 8189 | . . 180 . . . . . . . . . . . 124 300 . . . 118 . . . . . . . . . . 47 7420 . . . Electromagnetic 238 | . . . . . . . . . . . 238 . . . . . . . . . . . . . . . . . . . . . . . Impact 85 | . 54 . . . 31 . . . . . . . . . . . . . . . . . . . . . . . . . . . . . Slashing 9294 | . . . . . 282 . . 808 85 87 . 534 . 846 . . . . 422 . 496 . . . . 1266 516 . 407 . 1592 212 1741 . Piercing 3656 | . . . . . 65 . . . . . . . . . . . . . . . . . . . . . . . . . 907 . 1425 1259 Entropic 627 | . . . . . . . . . . . . . . . . . . . . . . . . . . . . . . . . . . 627 Highest Corruption 10 | . . . 1 . . 5 5 . . . 1 . . . . . . . . 10 10 . . . . 6 6 7 . . 1 . 3 8 Average Corruption 3 | . . . 1 . . 5 3 . . . 1 . . . . . . . . 10 4 . . . . 3 6 6 . . 1 . 2 3 Corruption Purged 19 | . . . . . . . 5 . . . . . . . . . . . . . 11 . . . . . . . . . . . 3 . Corruption Blocked 7 | . . . . . . . . . . . . . . . . . . . . . . . . . . . . . . . 7 . . . Effects 60 | . . . 4 . . 1 . . . . 1 . . . . . . . . . 10 . . . . 6 14 7 . . 2 . 3 12 Message Errors 11 | . . . . . . . . . . . . . . . . . . . . . 2 . . . . 1 3 3 . . . . 1 1 Matter Fused 22 | . . . 2 . . 1 . . . . . . . . . . . . . . 3 . . . . 4 4 2 . . 1 . 1 4 Heat Flow Errors 5 | . . . . . . . . . . . 1 . . . . . . . . . 3 . . . . 1 . . . . . . . . Energy Discharges 7 | . . . 1 . . . . . . . . . . . . . . . . . . . . . . . 4 1 . . . . . 1 Parts Rejected 4 | . . . . . . . . . . . . . . . . . . . . . 1 . . . . . . . . . 1 . . 2 Data Loss (minor) 5 | . . . . . . . . . . . . . . . . . . . . . 1 . . . . . 1 . . . . . 1 2 Data Loss (major) 5 | . . . 1 . . . . . . . . . . . . . . . . . . . . . . . 1 1 . . . . . 2 Weapon Failures 1 | . . . . . . . . . . . . . . . . . . . . . . . . . . . 1 . . . . . . . Overload Shots 1 | . . . . . . . . . 1 . . . . . . . . . . . . . . . . . . . . . . . . . Overflow Damage 3621 | . 54 . . . 132 . . 195 . . 65 . . 259 . . . . 263 . 83 . . . . 378 57 . 134 . 1492 . 435 74 Projectiles 143 | . . . . . . . . . . . . . . . . . . . . . . . . . . . . . . . 143 . . . Explosions 236 | . . . . . . . . . . . 65 . . 5 . . . . 61 . . . . . . . . . . . 105 . . . Melee 3242 | . 54 . . . 132 . . 195 . . . . . 254 . . . . 202 . 83 . . . . 378 57 . 134 . 1244 . 435 74 Knockbacks 30 | . 1 . . . . . . . . . . . . . . . . . . . . . . . . . . 5 . . 24 . . . Impact 1 | . 1 . . . . . . . . . . . . . . . . . . . . . . . . . . . . . . . . . Kinetic 28 | . . . . . . . . . . . . . . . . . . . . . . . . . . . . 5 . . 23 . . . Secondary 1 | . . . . . . . . . . . . . . . . . . . . . . . . . . . . . . . 1 . . . Self-Inflicted Damage 307 | . . 34 . . . . . . . . 174 . . . . . . . . . . . . . . . . . . . 99 . . . Shots 5 | . . 1 . . . . . . . . 2 . . . . . . . . . . . . . . . . . . . 2 . . . Rammed . | . . . . . . . . . . . . . . . . . . . . . . . . . . . . . . . . . . . Targets Rammed . | . . . . . . . . . . . . . . . . . . . . . . . . . . . . . . . . . . . Kicked . | . . . . . . . . . . . . . . . . . . . . . . . . . . . . . . . . . . . Crushed . | . . . . . . . . . . . . . . . . . . . . . . . . . . . . . . . . . . . Highest Temperature 320 | . 28 . . . 100 . 94 44 194 . 166 42 20 244 . . 71 126 6 . 250 . . 3 31 113 180 76 140 320 3 . 120 8 Average Temperature 32 | . 8 . . . 44 . 24 11 80 . 166 23 9 104 . . 30 30 5 . 72 . . 3 13 8 22 22 33 83 3 . 52 5 Received Heat Transfer 1542 | . 114 36 . . 93 . 6 33 26 . . 45 . 90 . . . 9 . . 18 . . . 33 45 . 51 18 9 183 . 38 695 Siege Activations . | . . . . . . . . . . . . . . . . . . . . . . . . . . . . . . . . . . . Martial Activations . | . . . . . . . . . . . . . . . . . . . . . . . . . . . . . . . . . . . Shielding Activations . | . . . . . . . . . . . . . . . . . . . . . . . . . . . . . . . . . . . Robots Disrupted . | . . . . . . . . . . . . . . . . . . . . . . . . . . . . . . . . . . . Combat Hostiles . | . . . . . . . . . . . . . . . . . . . . . . . . . . . . . . . . . . . Robots Corrupted 1 | . 1 . . . . . . . . . . . . . . . . . . . . . . . . . . . . . . . . . Combat Hostiles . | . . . . . . . . . . . . . . . . . . . . . . . . . . . . . . . . . . . Parts Fried . | . . . . . . . . . . . . . . . . . . . . . . . . . . . . . . . . . . . Impact Corruptions 6 | . 4 . . . 2 . . . . . . . . . . . . . . . . . . . . . . . . . . . . . Robots Melted 3 | . . . . . . . . . . . . . . . . . . . . . . . . . . . . . . 1 . . . 2 Combat Hostiles 3 | . . . . . . . . . . . . . . . . . . . . . . . . . . . . . . 1 . . . 2 Parts Melted 12 | . . . . . . . . . . . . . . . . . . . . . . . . . . . . . . 10 . . . 2 Heat Transferred 8427 | . . . . . . . . . . . . . . . . . . . 250 . . . . . . . . . . 5106 3071 . . . Parts Sabotaged . | . . . . . . . . . . . . . . . . . . . . . . . . . . . . . . . . . . . Parts Stolen . | . . . . . . . . . . . . . . . . . . . . . . . . . . . . . . . . . . . Parts Stripped . | . . . . . . . . . . . . . . . . . . . . . . . . . . . . . . . . . . . Power Chain Reactions 1 | . . . . . . . . 1 . . . . . . . . . . . . . . . . . . . . . . . . . . Alert | -11 -10 -10 -8 -8 -6 -6 -6 -6 -6 -6 -6 -5 -5 -5 -5 -5 -5 -4 -4 -4 -4 -4 -4 -4 -3 -3 -3 -3 -2 -2 -2 -1 -1 -1 ------- Run | Yrd Mat Sub Rec Scr Fac Was Fac Ext Cet Arc Hub Fac Was Fac Upp Upp War Pro Fac Was Fac Upp Upp Zhi Pro Res Tes Gar Res Qua Frg Acc Com Ac0 Maximum Alert Level 5 | . 1 . . . . . . 4 3 1 2 1 . 2 . . . . 2 . 1 . . . . 1 1 3 2 2 5 5 5 . Low Security (%) 46 | 100 85 . 100 . 100 100 100 26 . 24 69 . 100 29 . . . . 71 100 86 . . . . 99 84 30 . 15 25 . . . Level 1 14 | . 14 . . . . . . 19 . 75 14 100 . 28 . . . . 20 . 13 . . . . . 15 5 31 45 3 . . . Level 2 10 | . . . . . . . . 28 28 . 16 . . 41 . . . . 8 . . . . . . . . 15 68 39 6 . . . Level 3 4 | . . . . . . . . 13 71 . . . . . . . . . . . . . . . . . . 47 . . 8 . . . Level 4 5 | . . . . . . . . 12 . . . . . . . . . . . . . . . . . . . . . . 17 . . . Level 5 17 | . . . . . . . . . . . . . . . . . . . . . . . . . . . . . . . 38 100 100 . High Security . | . . . . . . . . . . . . . . . . . . . . . . . . . . . . . . . . . . . Max Security . | . . . . . . . . . . . . . . . . . . . . . . . . . . . . . . . . . . . Peak Influence 4543 | 5 241 . 157 . 98 42 55 1249 761 396 504 321 96 572 . . . . 496 170 274 . . . . 207 236 1027 619 537 4543 2840 1905 . Initial 2725 | . . . . . . 27 22 22 686 288 47 230 86 50 . . . . 150 170 119 . . . . . . 75 577 150 289 2725 1628 . Average 578 | 1 91 . 66 . 28 30 17 470 712 262 174 226 79 288 . . . . 185 170 124 . . . . 82 117 595 478 345 1345 2586 1808 . Influence Increases 18574 | 10 530 123 287 . 459 15 349 1703 375 178 978 276 66 1509 110 . . 15 929 . 725 . . . . 547 458 1032 210 883 5667 339 464 337 Destroy 0b10 Robot/C 6180 | . 180 80 100 . 20 . . 660 160 80 140 . . 520 100 . . . . . . . . . . . 20 320 100 240 3420 . 40 . Destroy 0b10 Robot/NC 435 | 10 20 . . . 20 . . 25 10 . 10 25 . 35 . . . . 15 . 20 . . . . 35 10 . 5 . 155 5 35 . Destroy Leader 944 | . 32 . . . 12 . . 72 . . 54 10 . 96 10 . . . 2 . 6 . . . . 4 4 20 22 110 480 2 8 . Allied During Kill 1815 | . . 28 74 . . . . 675 167 80 56 . . 354 . . . . . . . . . . . . . 290 1 . 90 . . . Trap Triggered on 0b10 60 | . . . . . . . 10 . . . . . . 10 . . . . 10 . 30 . . . . . . . . . . . . . Successful Hack 1719 | . 59 . 20 . 122 . 158 20 . . 27 75 . 66 . . . . 160 . 57 . . . . 263 178 34 46 191 126 57 60 . Select Force Hacks 170 | . 60 . 90 . 20 . . . . . . . . . . . . . . . . . . . . . . . . . . . . . Disable Machine 1440 | . . . . . 15 . . 75 15 15 225 . . 60 . . . . 150 . 15 . . . . . 60 . . 180 450 . 30 150 Anti-Garrison Action 250 | . . . . . . . . . . . 200 . . . . . . . . . . . . . . . . 50 . . . . . . Destroy Structure 1951 | . 14 . 3 . 40 . 16 41 8 3 176 16 66 248 . . . . 202 . 72 . . . . 50 66 93 21 132 481 15 76 112 Advance Influence 150 | . . . . . . . . . . . . . . . . . . . 150 . . . . . . . . . . . . . . . Partial Spotted 630 | . . . . . 15 15 60 30 . . 15 . . 30 . . . . 30 . 180 . . . . 45 60 . . 15 45 . 15 75 Lose Combat Pursuer 2430 | . 165 15 . . 195 . 105 105 15 . 75 150 . 90 . . . 15 210 . 345 . . . . 150 60 225 15 15 420 60 . . Active Sensor Use 400 | . . . . . . . . . . . . . . . . . . . . . . . . . . . . . . . . 200 200 . Influence Decreases 18457 | 10 289 364 287 . 380 62 334 523 881 763 643 501 240 1054 276 140 221 15 443 316 794 88 13 . . 547 357 106 970 635 1639 2338 1026 2202 Entered New Map 8121 | . . 117 . . . 52 10 25 541 433 89 241 160 22 196 70 221 . . 316 51 38 4 . . . . 26 450 117 226 1818 916 1982 Time Decay 5671 | 10 279 227 287 . 306 10 283 318 140 270 110 160 60 407 70 70 . 15 180 . 433 50 . . . 258 237 . 100 498 723 70 100 . Search Patrol Dispatched 300 | . . . . . . . . . . . . 100 . . . . . . . . 100 . . . . . 100 . . . . . . . Lost Part 431 | . . 20 . . 40 . . 20 10 . 20 . . 10 10 . . . . . 10 . . . . 1 . . . 10 50 . 10 220 Lost Ally 1215 | . 10 . . . 34 . 41 160 190 60 140 . 20 241 . . . . 20 . 20 . 9 . . . 20 80 120 10 40 . . . Purge Threat 2719 | . . . . . . . . . . . 284 . . 374 . . . . 243 . 180 . . . . 288 . . 300 . 600 450 . . Squads Dispatched 97 | . 3 . . . 14 . 8 2 . . 11 5 . 10 . . . . 6 . 9 . . . . 4 4 . 4 . 8 3 6 . Investigation 59 | . 2 . . . 9 . 6 2 . . 8 4 . 5 . . . . 4 . 4 . . . . 4 . . 2 . 3 2 4 . Extermination 22 | . . . . . 3 . 1 . . . 1 1 . 3 . . . . 1 . 5 . . . . . 3 . 1 . 1 1 1 . Reinforcement 13 | . 1 . . . 2 . 1 . . . 2 . . . . . . . 1 . . . . . . . . . 1 . 4 . 1 . Assault 3 | . . . . . . . . . . . . . . 2 . . . . . . . . . . . . 1 . . . . . . . Garrison . | . . . . . . . . . . . . . . . . . . . . . . . . . . . . . . . . . . . Intercept . | . . . . . . . . . . . . . . . . . . . . . . . . . . . . . . . . . . . Searches Triggered 3 | . . . . . . . . . . . . 1 . . . . . . . . 1 . . . . . 1 . . . . . . . Unchained Authorized 5 | . . . . . . . . . . . . 1 . 1 . . . . 1 . 1 . . . . . . . 1 . . . . . Construction Impeded 1 | . . . . . 1 . . . . . . . . . . . . . . . . . . . . . . . . . . . . . Haulers Reinforced . | . . . . . . . . . . . . . . . . . . . . . . . . . . . . . . . . . . . Active Scanning Responses 4 | . . . . . . . . . . . . . . . . . . . . . . . . . . . . . . . . 2 2 . Cargo Convoy Interrupts . | . . . . . . . . . . . . . . . . . . . . . . . . . . . . . . . . . . . Stealth | -11 -10 -10 -8 -8 -6 -6 -6 -6 -6 -6 -6 -5 -5 -5 -5 -5 -5 -4 -4 -4 -4 -4 -4 -4 -3 -3 -3 -3 -2 -2 -2 -1 -1 -1 --------- Run | Yrd Mat Sub Rec Scr Fac Was Fac Ext Cet Arc Hub Fac Was Fac Upp Upp War Pro Fac Was Fac Upp Upp Zhi Pro Res Tes Gar Res Qua Frg Acc Com Ac0 Distress Signals 63 | . 3 . . . 1 . 1 1 2 . 1 . . 1 . . . . 4 . 3 . . . . 6 2 . . . 12 1 25 . Communications Jammed . | . . . . . . . . . . . . . . . . . . . . . . . . . . . . . . . . . . . Distress Signals . | . . . . . . . . . . . . . . . . . . . . . . . . . . . . . . . . . . . Times Spotted 625 | . 39 22 1 . 22 5 18 41 12 . 5 16 7 26 5 . . 6 19 2 26 . . . 10 16 19 22 10 11 228 1 5 31 Peak Tracking Total 19 | . 6 5 1 . 5 5 7 10 5 . 4 7 6 6 5 . . 5 13 2 18 . . . 11 8 6 14 7 3 13 5 2 19 Tactical Retreats 87 | . 6 1 . . 8 . 4 4 1 . 2 3 2 3 . . . 1 7 . 8 . . . . 4 4 3 1 1 16 1 . 7 ECM-based Alert Blocks 7 | . . . . . . . . . . . . . . . . . . . . . 1 . . . . . 6 . . . . . . . Traps | -11 -10 -10 -8 -8 -6 -6 -6 -6 -6 -6 -6 -5 -5 -5 -5 -5 -5 -4 -4 -4 -4 -4 -4 -4 -3 -3 -3 -3 -2 -2 -2 -1 -1 -1 ------- Run | Yrd Mat Sub Rec Scr Fac Was Fac Ext Cet Arc Hub Fac Was Fac Upp Upp War Pro Fac Was Fac Upp Upp Zhi Pro Res Tes Gar Res Qua Frg Acc Com Ac0 Traps Triggered 35 | . . 3 . . 1 . 2 . . . 2 1 . 1 . . . . 1 . 5 . . . . 1 . . . . 17 . 1 . Indirectly 2 | . . . . . . . . . . . 2 . . . . . . . . . . . . . . . . . . . . . . . Trap Hack Attempts 107 | . . . . . . . 1 52 . . . 2 . 25 . . . . 11 . . . . . . . . . . . 16 . . . Triggered 1 | . . . . . . . . 1 . . . . . . . . . . . . . . . . . . . . . . . . . . Disarmed 9 | . . . . . . . . 1 . . 1 . . . . . . . . . . . . . . . 6 . . . 1 . . . Reprogrammed 28 | . . . . . . . 1 7 . . . . . 10 . . . . 6 . 3 . . . . . . . . . 1 . . . Reused 6 | . . . . . . . 1 . . . . . . 1 . . . . 1 . 3 . . . . . . . . . . . . . Traps Extracted . | . . . . . . . . . . . . . . . . . . . . . . . . . . . . . . . . . . . Installed . | . . . . . . . . . . . . . . . . . . . . . . . . . . . . . . . . . . . Triggered 6 | . . . . . . . 1 . . . . . . 1 . . . . 1 . 3 . . . . . . . . . . . . . Objects Rigged 13 | . . . . . . . . . . . . . . . . . . . 6 . 7 . . . . . . . . . . . . . Exploded 2 | . . . . . . . . . . . . . . . . . . . 2 . . . . . . . . . . . . . . . Machines | -11 -10 -10 -8 -8 -6 -6 -6 -6 -6 -6 -6 -5 -5 -5 -5 -5 -5 -4 -4 -4 -4 -4 -4 -4 -3 -3 -3 -3 -2 -2 -2 -1 -1 -1 ---------- Run | Yrd Mat Sub Rec Scr Fac Was Fac Ext Cet Arc Hub Fac Was Fac Upp Upp War Pro Fac Was Fac Upp Upp Zhi Pro Res Tes Gar Res Qua Frg Acc Com Ac0 Machines Disabled 112 | . . 3 . . 1 . . 6 1 1 15 . . 4 2 . 1 1 10 . 1 . . . . . 6 1 . 12 35 . 2 10 Max in Single Turn 7 | . . 1 . . 1 . . 2 1 . 7 . . . 1 . 1 1 5 . 1 . . . . . 1 1 . 1 2 . 1 1 Garrison Access 14 | . . . . . . . 1 . . . 1 2 . 2 . . . . 2 . 2 . . . . 2 . . . 1 1 . . . Garrison Relay 1 | . . . . . . . . . . . . . . . . . . . . . . . . . . . . 1 . . . . . . Network Hub 2 | . . . . . . . . . . . 2 . . . . . . . . . . . . . . . . . . . . . . . Machines Repaired . | . . . . . . . . . . . . . . . . . . . . . . . . . . . . . . . . . . . Machines Dismantled . | . . . . . . . . . . . . . . . . . . . . . . . . . . . . . . . . . . . Machines Sabotaged . | . . . . . . . . . . . . . . . . . . . . . . . . . . . . . . . . . . . Overloaded Fab Kills . | . . . . . . . . . . . . . . . . . . . . . . . . . . . . . . . . . . . Hacking | -11 -10 -10 -8 -8 -6 -6 -6 -6 -6 -6 -6 -5 -5 -5 -5 -5 -5 -4 -4 -4 -4 -4 -4 -4 -3 -3 -3 -3 -2 -2 -2 -1 -1 -1 --------- Run | Yrd Mat Sub Rec Scr Fac Was Fac Ext Cet Arc Hub Fac Was Fac Upp Upp War Pro Fac Was Fac Upp Upp Zhi Pro Res Tes Gar Res Qua Frg Acc Com Ac0 Machines Accessed 261 | . 10 1 9 4 24 . 24 10 . . 12 11 . 17 3 1 6 1 19 . 20 1 1 4 . 22 12 2 6 16 13 8 4 . Terminals 147 | . 7 . 6 . 12 . 11 10 . . 11 3 . 8 . 1 . . 10 . 9 1 . . . 12 10 2 3 12 9 6 4 . Fabricators 11 | . . . . . 2 . 2 . . . . 1 . 1 . . . . 1 . 2 . . . . 1 . . 1 . . . . . Repair Stations 17 | . 1 . . . 3 . 2 . . . . 1 . 2 . . . . 1 . 2 . . . . 3 . . . 1 . 1 . . Recycling Units 35 | . 2 . 3 . 5 . 4 . . . . 4 . 3 . . . . 4 . 3 . . . . 2 . . 1 . 3 1 . . Scanalyzers 16 | . . . . . 2 . 4 . . . . . . 1 . . . . 1 . 2 . . . . 2 1 . 1 2 . . . . Garrison Access 15 | . . . . . . . 1 . . . 1 2 . 2 . . . . 2 . 2 . . . . 2 1 . . 1 1 . . . Total Hacks 966 | . 30 1 22 25 60 . 66 22 . . 71 26 . 66 5 1 6 1 80 . 120 4 1 17 . 92 48 7 28 57 76 22 12 . Successful 667 | . 22 1 14 25 33 . 41 9 . . 51 18 . 49 5 1 6 1 63 . 92 4 1 17 . 66 29 4 16 40 41 12 6 . Failed 294 | . 7 . 8 . 27 . 25 13 . . 20 8 . 16 . . . . 16 . 26 . . . . 26 19 3 12 17 35 10 6 . Catastrophic 31 | . . . 3 . 3 . 1 5 . . 3 . . . . . . . . . 2 . . . . . 4 . 1 . 7 . 2 . Database Lockouts 5 | . 1 . . . . . . . . . . . . 1 . . . . 1 . 2 . . . . . . . . . . . . . Manual 523 | . 24 . 20 . 40 . 36 8 1 . 52 15 . 44 1 . . . 45 . 54 . . . . 36 29 6 10 20 63 8 11 . Terminals 690 | . 26 . 18 . 35 . 33 22 . . 69 14 . 54 . 1 . . 65 . 86 4 . . . 66 43 7 16 37 66 16 12 . Fabricators 23 | . . . . . 2 . 7 . . . . 1 . 2 . . . . 5 . 2 . . . . 2 . . 2 . . . . . Repair Stations 43 | . 2 . . . 8 . 6 . . . . 1 . 3 . . . . 1 . 4 . . . . 9 . . . 7 . 2 . . Recycling Units 50 | . 2 . 4 . 7 . 5 . . . . 6 . 3 . . . . 4 . 3 . . . . 2 . . 1 . 9 4 . . Scanalyzers 82 | . . . . . 8 . 14 . . . . . . 2 . . . . 3 . 20 . . . . 10 4 . 9 12 . . . . Garrison Access 22 | . . . . . . . 1 . . . 2 4 . 2 . . . . 2 . 5 . . . . 3 1 . . 1 1 . . . Terminal Hacks 293 | . 6 1 2 25 4 . 7 5 . . 24 4 . 20 5 1 6 1 24 . 43 4 1 17 . 32 10 4 3 13 20 8 3 . Record 57 | . . . . 24 . . . . . . . . . . 3 1 4 1 . . 6 4 . 5 . 4 . . . . 5 . . . Part Schematic 39 | . . . 1 . 1 . 2 . . . 2 . . 5 . . . . 6 . 5 . . 4 . 11 2 . . . . . . . Robot Schematic 2 | . . . . . . . . 1 . . . . . 1 . . . . . . . . . . . . . . . . . . . . Robot Analysis 22 | . 3 . . . . . . . . . . 1 . 2 . . . . . . 7 . . 4 . 2 1 . . 2 . . . . Prototype ID Bank 22 | . . . . . . . . . . . 1 . . 1 . . . . 5 . 2 . . 4 . 1 1 . 1 5 . 1 . . Open Door 15 | . . . . . 1 . 1 3 . . . . . . 2 . 2 . . . . . 1 . . . . . . 2 . 3 . . Level Access Points 2 | . . . . . . . . . . . 1 . . . . . . . 1 . . . . . . . . . . . . . . . Branch Access Points 6 | . . . . . . . . . . . 1 . . 1 . . . . 1 . 1 . . . . 1 . . . . . 1 . . Emergency Access Points 4 | . . . . . . . . . . . . . . . . . . . 1 . . . . . . 1 . 1 . . 1 . . . Machine Index 4 | . . . . . . . . . . . . . . . . . . . 1 . 1 . . . . . 1 . . 1 . . . . Terminal Index 10 | . 1 . 1 . . . 1 . . . 2 1 . 1 . . . . . . 1 . . . . 1 . . . . 1 . . . Fabricator Index 1 | . . . . . . . . . . . . . . . . . . . . . . . . . . . . . . . . . 1 . Repair Station Index 3 | . . . . . . . 1 . . . . . . . . . . . . . 1 . . . . . . . . . 1 . . . Recycling Unit Index 2 | . . . . . . . . . . . . . . . . . . . . . . . . . . 1 . . . . 1 . . . Garrison Index 4 | . . . . . . . 1 . . . . . . . . . . . . . 1 . . . . 1 . . . . 1 . . . Alert Level 1 | . . . . . . . . . . . . . . . . . . . 1 . . . . . . . . . . . . . . . Unreport Threat 21 | . . . . . . . . . . . 2 . . 3 . . . . 2 . 3 . . . . 2 . . 2 . 4 3 . . Locate Traps 8 | . 1 . . . . . . . . . 1 . . . . . . . . . 2 . . . . 2 . . . . 2 . . . Disarm Traps 4 | . . . . . . . . . . . 1 . . . . . . . . . . . . . . . 2 . . . 1 . . . Reprogram Traps 1 | . . . . . . . . . . . . . . . . . . . . . 1 . . . . . . . . . . . . . Dispatch Records 1 | . . . . . . . . . . . . . . . . . . . . . 1 . . . . . . . . . . . . . Surveillance Status 1 | . . . . . . . . . . . 1 . . . . . . . . . . . . . . . . . . . . . . . Extermination Status 1 | . . . . . . . . . . . . . . . . . . . . . 1 . . . . . . . . . . . . . Recall Investigation 2 | . . . . . . . . . . . 2 . . . . . . . . . . . . . . . . . . . . . . . Recall Extermination 6 | . . . . . . . . . . . 1 . . . . . . . . . 4 . . . . . 1 . . . . . . . Hauler Manifests 4 | . . . . . 1 . . . . . . 1 . 1 . . . . . . 1 . . . . . . . . . . . . . Registered Components 5 | . . . . . . . . . . . 1 . . . . . . . 1 . 1 . . . . 1 . . . . 1 . . . Registered Prototypes 3 | . . . . . . . . . . . 1 . . . . . . . 1 . . . . . . 1 . . . . . . . . Zone Layout 37 | . 1 . . . 1 . 1 1 . . 7 1 . 5 . . . . 4 . 4 . . . . 3 2 . . 3 2 . 2 . Garrison Registry 1 | . . . . . . . . . . . . . . . . . . . . . . . . . . . . 1 . . . . . . Patrol Navigation 1 | . . . . . . . . . . . . . . . . . . . . . . . . . . . . 1 . . . . . . Security Stations 1 | . . . . . . . . . . . . . . . . . . . . . . . . . . . . 1 . . . . . . Proto ID Catalog 2 | . . 1 . 1 . . . . . . . . . . . . . . . . . . . . . . . . . . . . . . Fabricator Hacks 10 | . . . . . 1 . 2 . . . . 1 . 1 . . . . 2 . 2 . . . . . . . 1 . . . . . Network Status 7 | . . . . . 1 . . . . . . 1 . 1 . . . . 1 . 2 . . . . . . . 1 . . . . . Load Schematic 1 | . . . . . . . 1 . . . . . . . . . . . . . . . . . . . . . . . . . . . Build 2 | . . . . . . . 1 . . . . . . . . . . . 1 . . . . . . . . . . . . . . . Repair Station Hacks 28 | . 2 . . . 6 . 3 . . . . 1 . 1 . . . . . . 2 . . . . 5 . . . 6 . 2 . . Scan Component 13 | . 1 . . . 3 . 2 . . . . . . . . . . . . . 1 . . . . 2 . . . 3 . 1 . . Repair 12 | . 1 . . . 3 . 1 . . . . . . . . . . . . . 1 . . . . 2 . . . 3 . 1 . . Refit 3 | . . . . . . . . . . . . 1 . 1 . . . . . . . . . . . 1 . . . . . . . . Recycling Unit Hacks . | . . . . . . . . . . . . . . . . . . . . . . . . . . . . . . . . . . . Scanalyzer 60 | . . . . . 3 . 10 . . . . . . 2 . . . . 2 . 19 . . . . 8 2 . 7 7 . . . . Insert Component 26 | . . . . . 2 . 3 . . . . . . 1 . . . . 1 . 6 . . . . 4 1 . 3 5 . . . . Analyze 22 | . . . . . 1 . 3 . . . . . . 1 . . . . . . 8 . . . . 2 1 . 4 2 . . . . Retrieve Study 12 | . . . . . . . 4 . . . . . . . . . . . 1 . 5 . . . . 2 . . . . . . . . Garrison Access Hacks 14 | . . . . . . . 1 . . . . 2 . 2 . . . . 2 . 2 . . . . 2 1 . . 1 1 . . . Unlock Access 1 | . . . . . . . . . . . . . . . . . . . . . . . . . . . 1 . . . . . . . Seal Access 13 | . . . . . . . 1 . . . . 2 . 2 . . . . 2 . 2 . . . . 2 . . . 1 1 . . . Unauthorized Hacks 261 | . 14 . 12 . 19 . 18 4 . . 27 10 . 23 . . . . 33 . 24 . . . . 19 16 . 5 13 20 1 3 . Terminals 218 | . 12 . 9 . 13 . 13 4 . . 26 6 . 18 . . . . 27 . 20 . . . . 16 16 . 4 13 17 1 3 . Track 39 | . 1 . . . . . . . . . 8 1 . 3 . . . . 7 . 5 . . . . 3 3 . . 3 5 . . . Assimilate 28 | . 1 . . . 2 . 3 1 . . 2 . . 3 . . . . 5 . 3 . . . . . 5 . . 1 2 . . . Botnet 57 | . 3 . 3 . 4 . 5 3 . . 4 2 . 4 . . . . 6 . 5 . . . . 5 2 . 1 3 3 1 3 . Detonate 2 | . . . . . . . . . . . . . . . . . . . 1 . 1 . . . . . . . . . . . . . Disrupt 4 | . 1 . . . . . . . . . 1 . . . . . . . . . . . . . . . . . . . 2 . . . Operators 6 | . 1 . . . . . . . . . . . . 1 . . . . 2 . 1 . . . . 1 . . . . . . . . Skim 77 | . 5 . 6 . 7 . 5 . . . 6 3 . 7 . . . . 6 . 5 . . . . 7 6 . 3 6 5 . . . Sabotage 5 | . . . . . . . . . . . 5 . . . . . . . . . . . . . . . . . . . . . . . Fabricators 5 | . . . . . 1 . 1 . . . . . . 1 . . . . 1 . . . . . . 1 . . . . . . . . Prioritize 1 | . . . . . . . . . . . . . . . . . . . 1 . . . . . . . . . . . . . . . Liberate 1 | . . . . . . . 1 . . . . . . . . . . . . . . . . . . . . . . . . . . . Download 1 | . . . . . 1 . . . . . . . . . . . . . . . . . . . . . . . . . . . . . Recompile 2 | . . . . . . . . . . . . . . 1 . . . . . . . . . . . 1 . . . . . . . . Repair Stations 4 | . . . . . 1 . . . . . . . . 1 . . . . 1 . 1 . . . . . . . . . . . . . Mechanics 1 | . . . . . . . . . . . . . . . . . . . 1 . . . . . . . . . . . . . . . Patch 3 | . . . . . 1 . . . . . . . . 1 . . . . . . 1 . . . . . . . . . . . . . Recycling Units 33 | . 2 . 3 . 4 . 4 . . . . 4 . 3 . . . . 4 . 3 . . . . 2 . . 1 . 3 . . . Tunnel 5 | . 2 . 3 . . . . . . . . . . . . . . . . . . . . . . . . . . . . . . . Fedlink 26 | . . . . . 4 . 4 . . . . 4 . 3 . . . . 4 . 3 . . . . 2 . . 1 . 1 . . . Scraphulk 2 | . . . . . . . . . . . . . . . . . . . . . . . . . . . . . . . 2 . . . Scanalyzers . | . . . . . . . . . . . . . . . . . . . . . . . . . . . . . . . . . . . Garrison Access 1 | . . . . . . . . . . . 1 . . . . . . . . . . . . . . . . . . . . . . . Jam 1 | . . . . . . . . . . . 1 . . . . . . . . . . . . . . . . . . . . . . . Data Cores Recovered 2 | . 1 . . . . . . . . . . . . . . . . . . . . . . . . . . . . . . . 1 . Used . | . . . . . . . . . . . . . . . . . . . . . . . . . . . . . . . . . . . Hacking Detections 157 | . 5 . 7 . 16 . 19 7 . . 11 4 . 7 . . . . 11 . 7 1 . . . 17 11 2 4 11 9 4 4 . Full Trace Events 11 | . . . 1 . 3 . 2 1 . . 2 . . . . . . . . . . . . . . 1 . . . . . . 1 . Feedback Events 3 | . . . 1 . 1 . . . . . . . . . . . . . . . . . . . . 1 . . . . . . . . Corruption 2 | . . . 1 . . . . . . . . . . . . . . . . . . . . . . 1 . . . . . . . . Hackware Fried 1 | . . . . . 1 . . . . . . . . . . . . . . . . . . . . . . . . . . . . . Feedback Blocked . | . . . . . . . . . . . . . . . . . . . . . . . . . . . . . . . . . . . Robot Schematics Acquired 7 | . . . . . . . . 1 . . . . . 1 . . . . . . . . . . . . . . . 2 3 . . . Robots Built . | . . . . . . . . . . . . . . . . . . . . . . . . . . . . . . . . . . . Authchips . | . . . . . . . . . . . . . . . . . . . . . . . . . . . . . . . . . . . Time . | . . . . . . . . . . . . . . . . . . . . . . . . . . . . . . . . . . . Total Robot Build Rating . | . . . . . . . . . . . . . . . . . . . . . . . . . . . . . . . . . . . Part Schematics Acquired 79 | . . . 1 . 3 . 5 . . . 2 . . 6 . . . . 6 . 11 . . 4 . 13 4 . 3 6 15 . . . Parts Built 4 | . . . . . . . 2 . . . . . . . . . . . 2 . . . . . . . . . . . . . . . Authchips . | . . . . . . . . . . . . . . . . . . . . . . . . . . . . . . . . . . . Time 77 | . . . . . . . 31 . . . . . . . . . . . 46 . . . . . . . . . . . . . . . Total Part Build Rating 28 | . . . . . . . 10 . . . . . . . . . . . 18 . . . . . . . . . . . . . . . Part Studies Acquired 12 | . . . . . . . 4 . . . . . . . . . . . 1 . 5 . . . . 2 . . . . . . . . Parts Repaired 12 | . 1 . . . 3 . 1 . . . . . . . . . . . . . 1 . . . . 2 . . . 3 . 1 . . Time 645 | . 26 . . . 129 . 68 . . . . . . . . . . . . . 37 . . . . 99 . . . 250 . 36 . . Parts Recycled . | . . . . . . . . . . . . . . . . . . . . . . . . . . . . . . . . . . . Recycled Matter . | . . . . . . . . . . . . . . . . . . . . . . . . . . . . . . . . . . . Retrieved Matter . | . . . . . . . . . . . . . . . . . . . . . . . . . . . . . . . . . . . Retrieved Components . | . . . . . . . . . . . . . . . . . . . . . . . . . . . . . . . . . . . Parts Scanalyzed 19 | . . . . . 1 . 3 . . . . . . 1 . . . . . . 6 . . . . 3 1 . 3 1 . . . . Part Schematics Acquired 18 | . . . . . 1 . 3 . . . . . . 1 . . . . . . 6 . . . . 2 1 . 3 1 . . . . Parts Damaged 3 | . . . . . 1 . . . . . . . . . . . . . . . 1 . . . . 1 . . . . . . . . Bothacking | -11 -10 -10 -8 -8 -6 -6 -6 -6 -6 -6 -6 -5 -5 -5 -5 -5 -5 -4 -4 -4 -4 -4 -4 -4 -3 -3 -3 -3 -2 -2 -2 -1 -1 -1 ------------ Run | Yrd Mat Sub Rec Scr Fac Was Fac Ext Cet Arc Hub Fac Was Fac Upp Upp War Pro Fac Was Fac Upp Upp Zhi Pro Res Tes Gar Res Qua Frg Acc Com Ac0 Used RIF Installer 1 | . . . . . . . . . . . . . . . . . . . . . . . . . . . . 1 . . . . . . Robots Hacked 15 | . . . . . . . . 3 . 5 . 2 . . . . . . 1 . . . . . . 2 . . . . 2 . . . Non-combat 11 | . . . . . . . . 3 . 5 . 2 . . . . . . 1 . . . . . . . . . . . . . . . Combat 2 | . . . . . . . . . . . . . . . . . . . . . . . . . . . . . . . 2 . . . Robot Hacks Applied 20 | . . . . . . . . 3 . 10 . 4 . . . . . . 1 . . . . . . . . . . . 2 . . . no_distress 4 | . . . . . . . . 3 . . . 1 . . . . . . . . . . . . . . . . . . . . . . find_chute 2 | . . . . . . . . . . . . 1 . . . . . . 1 . . . . . . . . . . . . . . . find_fabricator 1 | . . . . . . . . . . . . 1 . . . . . . . . . . . . . . . . . . . . . . find_dsf 1 | . . . . . . . . . . . . 1 . . . . . . . . . . . . . . . . . . . . . . check_alert 10 | . . . . . . . . . . 10 . . . . . . . . . . . . . . . . . . . . . . . . disable_scanner 2 | . . . . . . . . . . . . . . . . . . . . . . . . . . . . . . . 2 . . . Manual 2 | . . . . . . . . . . . . . . . . . . . . . . . . . . 2 . . . . . . . . Relay Couplers Released 5 | . . . . . . . . . . . . . . . . . . . . . . . . . . . . 5 . . . . . . Machine Destruction 5 | . . . . . . . . . . . . . . . . . . . . . . . . . . . . 5 . . . . . . Attached 1 | . . . . . . . . . . . . . . . . . . . . . . . . . . . . . . 1 . . . . Fabnet Peak Effective % . | . . . . . . . . . . . . . . . . . . . . . . . . . . . . . . . . . . . Robots Rewired 40 | . . . 7 . . . . 21 . . . . . . . . . . . . . . . . . . . 12 . . . . . . Allies Hacked 2 | . . . . . . . . . . . . . . 1 . . . . . . . . . . . . 1 . . . . . . . Hacks Repelled . | . . . . . . . . . . . . . . . . . . . . . . . . . . . . . . . . . . . Allies | -11 -10 -10 -8 -8 -6 -6 -6 -6 -6 -6 -6 -5 -5 -5 -5 -5 -5 -4 -4 -4 -4 -4 -4 -4 -3 -3 -3 -3 -2 -2 -2 -1 -1 -1 -------- Run | Yrd Mat Sub Rec Scr Fac Was Fac Ext Cet Arc Hub Fac Was Fac Upp Upp War Pro Fac Was Fac Upp Upp Zhi Pro Res Tes Gar Res Qua Frg Acc Com Ac0 Total Allies 127 | . 1 20 7 . 14 . 5 28 5 . 1 . 19 3 . . . . 4 . 2 . . . . . 3 12 . 1 2 . . . Largest Group 26 | . 1 19 26 24 10 . 4 23 20 14 10 . 19 16 . . . . 3 . 1 1 1 . . . 2 11 6 1 2 . . . Highest-Rated Group 920 | . 10 361 460 433 175 . 100 769 920 748 526 . 684 610 . . . . 111 . 26 26 26 . . . 71 702 434 45 278 . . . Highest-Rated Ally 159 | . 10 19 19 19 31 . 32 159 159 151 96 . 50 50 . . . . 45 . 26 26 26 . . . 45 89 89 45 139 . . . Total Orders 26 | . . . 1 . . . 4 4 8 3 . . . . . . . . . . 2 . . . . . . . . . 4 . . . STAY 7 | . . . . . . . 2 2 . . . . . . . . . . . . 1 . . . . . . . . . 2 . . . ROAM 2 | . . . . . . . . . 1 1 . . . . . . . . . . . . . . . . . . . . . . . . FOLLOW 16 | . . . . . . . 2 2 7 2 . . . . . . . . . . 1 . . . . . . . . . 2 . . . PICKUP 1 | . . . 1 . . . . . . . . . . . . . . . . . . . . . . . . . . . . . . . Ally Attacks 751 | . . 17 19 . 35 . 4 187 72 25 49 . 102 107 . . . . . . . . . . . . . 55 28 . 51 . . . Total Damage 20987 | . . 225 291 . 508 . 163 3840 1812 942 1542 . 3327 3225 . . . . . . . . . . . . . 1784 952 . 2376 . . . Kills 125 | . . 2 5 . 1 . . 31 10 4 7 . 9 30 . . . . . . . . . . . . . 11 5 . 10 . . . Allies Corrupted 2 | . . . . . . . . . . . . . . 1 . . . . . . . . . . . . . 1 . . . . . . Allies Melted 7 | . . . . . . . 1 . . . 1 . . . . . . . . . . . . . . . . . . . 5 . . . Intel | -11 -10 -10 -8 -8 -6 -6 -6 -6 -6 -6 -6 -5 -5 -5 -5 -5 -5 -4 -4 -4 -4 -4 -4 -4 -3 -3 -3 -3 -2 -2 -2 -1 -1 -1 ------- Run | Yrd Mat Sub Rec Scr Fac Was Fac Ext Cet Arc Hub Fac Was Fac Upp Upp War Pro Fac Was Fac Upp Upp Zhi Pro Res Tes Gar Res Qua Frg Acc Com Ac0 Active Infowar (turns) 18573 | . 420 174 . . 1066 39 705 713 287 585 242 316 127 1367 156 151 219 149 378 16 1112 119 61 39 342 745 505 276 216 1326 4890 142 1051 639 Optics 6340 | . . 58 . . . . . . . . . . . . . . . . . . . . . . . . . . . . 4450 142 1051 639 Sensors 11557 | . . . . . 1066 39 705 713 61 . 234 316 127 1367 156 151 219 149 378 16 1112 119 61 39 342 745 505 2 205 1310 1420 . . . A.S.S. 4881 | . . . . . . . . . . . . . . . . . . . . . . . . . . . . . . . 3085 142 1051 603 Structural 7684 | . . . . . 403 29 616 713 287 585 217 316 127 252 . . . . 301 16 517 119 61 29 318 352 502 1 206 1314 403 . . . Seismic 536 | . 420 116 . . . . . . . . . . . . . . . . . . . . . . . . . . . . . . . . Cloaking 8439 | . . . . . . . . . . . . . . . . . . . . . . . . 23 302 745 268 276 216 949 4318 142 927 273 ECM 522 | . . . . . . . . . . . . . . . . . . . . . 10 . . . . . 211 . . . . . 1 300 Robot Analysis Total 22 | . 3 . . . . . . . . . . 1 . 2 . . . . . . 7 . . 4 . 2 1 . . 2 . . . . Derelict Logs Recovered 10 | . . 2 . 3 . . . . . . . . . . 1 2 . . . . . 2 . . . . . . . . . . . . Drone Launches . | . . . . . . . . . . . . . . . . . . . . . . . . . . . . . . . . . . . Drone Recoveries . | . . . . . . . . . . . . . . . . . . . . . . . . . . . . . . . . . . . Exploration | -11 -10 -10 -8 -8 -6 -6 -6 -6 -6 -6 -6 -5 -5 -5 -5 -5 -5 -4 -4 -4 -4 -4 -4 -4 -3 -3 -3 -3 -2 -2 -2 -1 -1 -1 ------------- Run | Yrd Mat Sub Rec Scr Fac Was Fac Ext Cet Arc Hub Fac Was Fac Upp Upp War Pro Fac Was Fac Upp Upp Zhi Pro Res Tes Gar Res Qua Frg Acc Com Ac0 Turns Passed 23463 | 41 773 2037 717 1835 1128 39 705 713 287 585 257 320 127 1367 156 151 219 149 378 16 1112 119 61 39 342 745 505 276 216 1326 4890 142 1051 639 Spaces Moved 43917 | 44 958 3367 641 1109 1995 99 1824 868 510 294 706 955 251 2345 615 374 781 465 1146 76 2371 596 313 132 379 2050 1307 402 522 2591 8799 288 2287 2457 Core 427 | 44 265 . 31 . . . . . . 87 . . . . . . . . . . . . . . . . . . . . . . . . Treads 20 | . . . . 20 . . . . . . . . . . . . . . . . . . . . . . . . . . . . . . Legs 15 | . . . . . . . . . . . . . . . . . . . . . . . . . . . . . . . 15 . . . Wheels 1238 | . . . 148 1089 . . . . . . . . . . . . . . . . . . . . . . 1 . . . . . . . Hover 6255 | . . . . . . . . . . . . . . . . . . . . . . . . . . . . . . . 6255 . . . Flight 35962 | . 693 3367 462 . 1995 99 1824 868 510 207 706 955 251 2345 615 374 781 465 1146 76 2371 596 313 132 379 2050 1306 402 522 2591 2529 288 2287 2457 Fastest Speed 8 | 50 37 37 37 130 22 26 21 21 26 26 26 24 21 18 20 20 15 8 15 18 18 18 18 18 18 15 18 15 11 11 10 10 10 9 Average Speed 27 | 50 40 37 68 149 25 26 23 23 26 151 26 27 24 20 20 20 19 14 18 18 18 18 18 18 18 18 18 18 17 17 28 10 10 11 Slowest Speed 450 | 50 50 117 150 385 28 28 26 26 26 450 35 30 26 26 94 20 20 15 19 18 18 18 18 18 18 19 130 88 18 18 224 10 11 74 Overloaded Moves 173 | . . . . . . . . . . . . . . . . . . 11 . . . . . . . 5 . 10 39 14 51 . . 43 Propulsion Burnouts . | . . . . . . . . . . . . . . . . . . . . . . . . . . . . . . . . . . . Robots Hopped 134 | . 16 1 . . 10 2 11 6 . 1 1 . 1 7 . . . . 5 . 13 . 1 . . 8 4 2 4 1 21 . 4 15 Potential Cave-ins 17 | . . . . . . . . 4 . . . . . . . . . . . . 2 . . . . . . . . . 4 . 6 1 Cave-ins Triggered 1 | . . . . . . . . . . . . . . . . . . . . . . . . . . . . . . . . . . 1 Teleports 3 | . . . . . . . . . . . . . . . . . . . . . . . . . . . . . . . 1 . 1 1 Exploration Rate (%) 64 | 4 94 94 87 84 48 81 40 65 86 88 58 34 87 43 64 61 85 73 39 77 50 73 56 60 55 67 88 48 16 96 88 11 66 92 Regions Visited 34 Branch Regions 20 Pre-discovered Areas 23 | . 3 1 4 1 2 . . . . . . . . 2 . 1 . . . . 1 . . 3 . 2 3 . . . . . . . Known Exits Taken 25 | . . 1 1 1 . . 1 1 1 1 1 . . 1 1 1 1 1 . . 1 1 1 1 1 1 1 . 1 1 1 1 1 . Unknown Exits Taken 2 | 1 1 . . . . . . . . . . . . . . . . . . . . . . . . . . . . . . . . . Scrap Searched 22 | . . 10 . 5 . . . . . . . . . . 1 1 . 1 . . . 2 1 . 1 . . . . . . . . . Spaces Dug 511 | . 15 36 3 . 39 . 16 34 . . 6 8 . 25 3 . . 9 111 . 38 2 1 . . 26 36 12 7 12 20 5 23 24 Terrain Destroyed 1151 | . 15 78 3 . 39 . 16 43 . . 349 8 . 29 13 . . 9 111 . 38 2 1 . . 26 37 19 7 55 191 5 25 32 Melee 350 | . 6 29 3 . 39 . 16 28 . . 6 8 . 25 3 . . 9 26 . 34 2 1 . . 24 27 12 7 6 12 5 8 14 Projectile 105 | . 9 . . . . . . 13 . . 2 . . . . . . . . . 4 . . . . 2 10 . . 6 24 . 17 18 AOE 641 | . . 49 . . . . . 2 . . 341 . . 4 10 . . . 85 . . . . . . . . . . 43 107 . . . Terrain Rammed . | . . . . . . . . . . . . . . . . . . . . . . . . . . . . . . . . . . . Walls Destroyed . | . . . . . . . . . . . . . . . . . . . . . . . . . . . . . . . . . . . Machines Disabled . | . . . . . . . . . . . . . . . . . . . . . . . . . . . . . . . . . . . Actions | -11 -10 -10 -8 -8 -6 -6 -6 -6 -6 -6 -6 -5 -5 -5 -5 -5 -5 -4 -4 -4 -4 -4 -4 -4 -3 -3 -3 -3 -2 -2 -2 -1 -1 -1 --------- Run | Yrd Mat Sub Rec Scr Fac Was Fac Ext Cet Arc Hub Fac Was Fac Upp Upp War Pro Fac Was Fac Upp Upp Zhi Pro Res Tes Gar Res Qua Frg Acc Com Ac0 Total 53002 | 53 1191 3936 915 1284 2501 108 2050 1288 658 428 750 992 314 3175 633 449 850 529 1264 77 2977 603 314 146 651 2336 1477 549 618 3236 10533 388 3021 2708 Wait 6220 | . 93 428 203 157 417 9 183 251 133 111 20 2 63 745 3 75 37 53 70 . 544 6 2 . 271 206 62 81 85 400 692 91 619 108 Move 43628 | 43 926 3364 640 1108 1975 95 1802 855 509 291 703 955 248 2330 614 373 780 464 1136 75 2345 595 310 131 378 2033 1299 397 513 2588 8762 287 2278 2426 Hop 123 | . 15 1 . . 10 1 10 6 . 1 1 . 1 7 . . . . 5 . 12 . 1 . . 8 4 2 4 1 15 . 4 14 Pick Up 230 | 2 8 2 4 12 1 1 4 1 1 1 . . . 7 3 1 4 1 2 1 10 . . 1 . 6 8 3 . 10 117 1 9 9 Fast Attach 217 | 4 7 4 3 1 10 1 4 3 4 6 1 6 2 3 2 . 9 . 2 . 4 . . 6 . 16 16 1 2 11 80 . 2 7 Attach 135 | . 2 1 1 1 13 . 1 1 1 . . 1 . . 1 . 3 . 1 . 3 . . . 1 3 4 5 2 5 43 3 17 22 Detach 72 | . . . 1 1 . . . 1 1 . . 1 . . . . 3 . . . . . . 1 . 3 5 3 . 2 27 . 11 12 Swap 179 | . 9 6 1 2 3 1 1 8 1 2 6 3 . 6 1 . 2 . 1 . 5 . . 1 1 2 7 2 1 5 77 . 13 12 Drop 348 | . 11 3 4 2 12 . 5 6 4 5 2 5 . 8 2 . 11 1 4 1 9 . . 6 . 20 20 3 . 15 172 . 10 7 Fire 856 | 4 109 15 . . . . . 15 1 . 10 . . 1 2 . 1 . . . 4 . . . . 4 13 6 . 184 444 . 12 31 Melee 799 | . 11 112 3 . 60 . 19 89 3 11 7 17 . 39 5 . . 10 32 . 41 2 1 . . 35 39 46 11 15 80 6 46 59 Ram . | . . . . . . . . . . . . . . . . . . . . . . . . . . . . . . . . . . . Kick . | . . . . . . . . . . . . . . . . . . . . . . . . . . . . . . . . . . . Crush . | . . . . . . . . . . . . . . . . . . . . . . . . . . . . . . . . . . . Escape Stasis 33 | . . . . . . . 20 . . . . . . 4 . . . . . . . . . . . . . . . . 8 . . 1 Rewire 55 | . . . 55 . . . . . . . . . . . . . . . . . . . . . . . . . . . . . . . Trap 107 | . . . . . . . 1 52 . . . 2 . 25 . . . . 11 . . . . . . . . . . . 16 . . . Miscellaneous . | . . . . . . . . . . . . . . . . . . . . . . . . . . . . . . . . . . . Route ------- -11/Scrapyard -10/Materials (discovered 5 exits: *Mat x3 / [*Min] / *Sub) -10/Subcaves (discovered 4 exits: [*Mat x2] / *Rec / *Scr) -8/Recycling (discovered 2 exits: *Fac / *Scr) -8/Scraptown (discovered 2 exits: *Fac x2) -6/Factory (discovered 6 exits: Fac x2 / *Low x2 / *Ext x2) -6/Waste -6/Factory (discovered 3 exits: *Fac x2 / *Ext) -6/Extension (discovered 2 exits: *Fac / *Cet) -6/Cetus (discovered 3 exits: *Fac x2 / *Arc) -6/Archives (discovered 3 exits: *Fac / *Hub x2) -6/Hub_04(d) (discovered 4 exits: *Fac x4) -5/Factory -5/Waste -5/Factory (discovered 6 exits: *Fac x4 / *Upp x2) -5/Upper Caves -5/Upper Caves (discovered 2 exits: *Fac / *War) -5/Warlord -4/Proximity Caves -4/Factory (discovered 6 exits: *Res x4 / Upp x2) -4/Waste -4/Factory (discovered 5 exits: *Res x3 / *Upp x2) -4/Upper Caves -4/Upper Caves -4/Zhirov -3/Proximity Caves -3/Research (discovered 5 exits: *Res x2 / Arm / *Tes x2) -3/Testing (discovered 2 exits: *Res / Gar) -3/Garrison (discovered 3 exits: *Res x3) -2/Research (discovered 3 exits: *Acc x2 / *Qua) -2/Quarantine (discovered 3 exits: *Acc / [*Sec] / *Frg) -2/Protoforge -1/Access -1/Command (discovered 3 exits: [*Sur x2] / *Ac0) -1/Access_0 0b11 Command History --------- Turn | Location | Event 7 | -11/Scrapyard | Discovered new exit (range 15) 42 | -11/Scrapyard | Entered Materials 304 | -10/Materials | Build established: Mutant 403 | -10/Materials | Discovered new exit (range 11) 510 | -10/Materials | Repaired Flight Unit 523 | -10/Materials | Learned location of 1 exit from Recycling 581 | -10/Materials | Identified exit to Materials 647 | -10/Materials | Discovered new exit (range 12) 667 | -10/Materials | Loaded intel: 25 trap records 690 | -10/Materials | Build established: Scavenger-Mutant 695 | -10/Materials | Learned location of 1 exit from Recycling 695 | -10/Materials | Discovered exit to Materials (range 10) 696 | -10/Materials | Central database locked down 770 | -10/Materials | Learned location of 1 exit from Storage 815 | -10/Materials | Entered Subcaves 816 | -10/Subcaves | Approached by a straggling Scientist 919 | -10/Subcaves | Shifting Twisted Machinery released Enh. Flamer 930 | -10/Subcaves | Visited triangular shrine 933 | -10/Subcaves | Found Prototype Device 933 | -10/Subcaves | Identified V3-11A's Pendant 938 | -10/Subcaves | Befriended Subdweller 960 | -10/Subcaves | Shifting Twisted Machinery released Sub. Machine Gun 986 | -10/Subcaves | Identified exit to Recycling 1033 | -10/Subcaves | Befriended Subdweller 1108 | -10/Subcaves | Discovered new exit (range 10) 1238 | -10/Subcaves | Befriended Subdweller 1261 | -10/Subcaves | Discovered new exit (range 4) 1262 | -10/Subcaves | Shifting Twisted Machinery released Battle Cannon 1276 | -10/Subcaves | Shifting Twisted Machinery released Slug Cannon 1327 | -10/Subcaves | Build established: Mutant 1451 | -10/Subcaves | Ambushed by Subdweller buried in earth 1453 | -10/Subcaves | Befriended Subdweller 1453 | -10/Subcaves | Core integrity fell below 50% 1504 | -10/Subcaves | Learned location of Zion (-6) 1507 | -10/Subcaves | A swath of the cavern ceiling suddenly collapsed 1542 | -10/Subcaves | Ambushed by Subdwellers from Twisted Machinery 1543 | -10/Subcaves | Befriended Subdweller 1543 | -10/Subcaves | Befriended Subdweller 1566 | -10/Subcaves | Scientist uncovered a shortcut to Scraptown 1608 | -10/Subcaves | Befriended Subdweller 1668 | -10/Subcaves | Befriended Subdweller 1678 | -10/Subcaves | Befriended Subdweller 1688 | -10/Subcaves | Befriended Subdweller 1688 | -10/Subcaves | Befriended Subdweller 1708 | -10/Subcaves | Befriended Subdweller 1708 | -10/Subcaves | Befriended Subdweller 1743 | -10/Subcaves | Befriended Subdweller 1743 | -10/Subcaves | Befriended Subdweller 1789 | -10/Subcaves | Disturbed a concealed Subdweller 1793 | -10/Subcaves | Befriended Subdweller 1913 | -10/Subcaves | Befriended Subdweller 1913 | -10/Subcaves | Befriended Subdweller 1913 | -10/Subcaves | Befriended Subdweller 1915 | -10/Subcaves | Visited 4L-MR0's lab 1921 | -10/Subcaves | Found Meta Core 2263 | -10/Subcaves | Disturbed a concealed Subdweller 2263 | -10/Subcaves | Befriended Subdweller 2391 | -10/Subcaves | Build established: Scavenger-Mutant 2852 | -10/Subcaves | Entered Recycling 2852 | -8/Recycling | Accompanied by 19 allies 2853 | -8/Recycling | Identified exit to Scraptown 2853 | -8/Recycling | Identified exit to Factory 3192 | -8/Recycling | Learned Factory recycling unit intel 3221 | -8/Recycling | Build established: Commander-Mutant 3254 | -8/Recycling | Learned Factory machine intel 3269 | -8/Recycling | Scanned before Scraplab entrance 3290 | -8/Recycling | Entered Scraplab 3350 | -8/Recycling | Learned location of 1 exit from Storage 3429 | -8/Recycling | Learned Factory recycling unit intel 3569 | -8/Recycling | Entered Scraptown 3569 | -8/Scraptown | Accompanied by 24 allies 3569 | -8/Scraptown | System corruption cleaned by C-Scrubber 3815 | -8/Scraptown | Delivered V3-11A's Pendant to T0-NE2 in exchange for information 3900 | -8/Scraptown | Heard Great Nut preacher, LISTEN AND RECITE! 3961 | -8/Scraptown | Scanned Subdweller tech in exchange for log data 3961 | -8/Scraptown | Learned Factory non-interactive machine intel 3962 | -8/Scraptown | Learned Factory trap positions 3964 | -8/Scraptown | Learned location of Extension (-6) 4016 | -8/Scraptown | Visited CPS Storage 4034 | -8/Scraptown | Visited IN-MT5's Study 4056 | -8/Scraptown | Visited UFD Registry 4056 | -8/Scraptown | Registered with UFD as "Zeronuts" 4161 | -8/Scraptown | Guru changed UFD alias to "Datasourcer" 4200 | -8/Scraptown | Discovered exit to Factory (range 11) 4542 | -8/Scraptown | Visited Symbiants 4577 | -8/Scraptown | Visited Shadow of the Wyrm 4589 | -8/Scraptown | Visited Cyclists 4602 | -8/Scraptown | Entered Cyclist Reading Room 4731 | -8/Scraptown | Visited Supply Room 4759 | -8/Scraptown | Visited Abandonware Association 4774 | -8/Scraptown | Learned abandonware demo "ERRANTS.EXE" 4774 | -8/Scraptown | Learned abandonware demo "KABOOM.EXE" 4913 | -8/Scraptown | Visited Derelict Rescue Squad 4933 | -8/Scraptown | Visited Infowarlord's Domain 4943 | -8/Scraptown | Found Exp. Signal Interpreter 4982 | -8/Scraptown | Visited DA-N13 Charitable Foundation 5021 | -8/Scraptown | Found DCF Scrap (28 items) 5101 | -8/Scraptown | Visited Observation Area 5122 | -8/Scraptown | Visited Science Guys 5306 | -8/Scraptown | Met Optimus 5306 | -8/Scraptown | Accepted into 0bPrime 5380 | -8/Scraptown | Discovered exit to Factory (range 3) 5404 | -8/Scraptown | Entered Factory 5404 | -6/Factory | Accompanied by 10 allies 5404 | -6/Factory | Evolved 8 slots: Propulsion x4, Utility x4 5405 | -6/Factory | Identified exit to Extension 5406 | -6/Factory | Loaded intel: 102 trap records 5407 | -6/Factory | Loaded intel: 311 machine locations 5408 | -6/Factory | Loaded intel: 255 non-interactive machine locations 5409 | -6/Factory | Loaded intel: 8 recycling unit locations 5463 | -6/Factory | Loaded intel: 8 recycling unit locations 5486 | -6/Factory | Learned location of Protoforge (-2) 5549 | -6/Factory | Repaired Cesium-ion Thruster 5600 | -6/Factory | Repaired Adv. Sensor Array 5628 | -6/Factory | Spotted B-75 Beast 5697 | -6/Factory | Build established: Hacker-Sprinter 5712 | -6/Factory | Hacking Suite fried by hacking feedback 6031 | -6/Factory | Discovered new exit (range 9) 6299 | -6/Factory | Identified exit to Lower Caves 6351 | -6/Factory | Learned Hub_04(d) stockpile data 6393 | -6/Factory | Learned Extension trap positions 6423 | -6/Factory | Loaded intel: 6 fabricator locations 6433 | -6/Factory | Build established: Hacker-Scout 6442 | -6/Factory | Learned Hub_04(d) garrison access intel 6455 | -6/Factory | Learned 2 Hub_04(d) zone layouts 6468 | -6/Factory | Identified exit to Factory 6489 | -6/Factory | Learned Hub_04(d) terminal intel 6502 | -6/Factory | Repaired Broken Exp. Signal Interpreter? 6522 | -6/Factory | Learned location of Proximity Caves (-3) 6532 | -6/Factory | Manually triggered Chute Trap 6532 | -6/Factory | Sucked down chute 6532 | -6/Factory | Entered Waste 6541 | -6/Waste | Spotted C-40 Crusher 6541 | -6/Waste | Spotted C-40 Crusher 6542 | -6/Waste | Spotted C-40 Crusher 6546 | -6/Waste | Spotted C-40 Crusher 6547 | -6/Waste | EMP discharged 6554 | -6/Waste | Spotted C-40 Crusher 6557 | -6/Waste | Discovered new exit (range 14) 6561 | -6/Waste | Identified exit to Factory 6571 | -6/Waste | Entered Factory 6572 | -6/Factory | Loaded intel: 8 recycling unit locations 6634 | -6/Factory | Discovered exit to Factory (range 4) 6984 | -6/Factory | Learned 2 Extension zone layouts 7023 | -6/Factory | Loaded intel: 8 recycling unit locations 7049 | -6/Factory | Learned 4 Proximity Caves zone layouts 7084 | -6/Factory | Fabricated Stasis Canceller? 7128 | -6/Factory | Repaired Broken Nanosword 7185 | -6/Factory | Learned Hub_04(d) trap positions 7276 | -6/Factory | Entered Extension 7277 | -6/Extension | Identified exit to Cetus 7279 | -6/Extension | Loaded intel: 21 trap records 7299 | -6/Extension | Rescued a captive Derelict 7337 | -6/Extension | Rescued A7 7394 | -6/Extension | Rescued a captive Derelict 7404 | -6/Extension | Rescued a captive Derelict 7464 | -6/Extension | Rescued a captive Derelict 7466 | -6/Extension | Rescued a captive Derelict 7831 | -6/Extension | Build established: Commander-Scout 7849 | -6/Extension | Disrupted transfer network 7854 | -6/Extension | Attached CPS modules to A7. 7900 | -6/Extension | Discovered exit to Factory (range 10) 7989 | -6/Extension | Entered Cetus 7989 | -6/Cetus | Accompanied by 20 allies (A7) 7994 | -6/Cetus | Acquired a Cetus Manufacturing Module code from A7 8003 | -6/Cetus | Spotted Cetus Guard 8003 | -6/Cetus | Spotted Cetus Guard 8004 | -6/Cetus | Spotted Cetus Guard 8004 | -6/Cetus | Spotted Cetus Guard 8019 | -6/Cetus | Allies destroyed Cetus Guard 8044 | -6/Cetus | Started Cetus Manufacturing Module 8052 | -6/Cetus | Lost 6 allies 8069 | -6/Cetus | Manufactured an Enhanced Grunt 8076 | -6/Cetus | Escorted A7 to Cetus Mainframe 8094 | -6/Cetus | Manufactured an Enhanced Grunt 8111 | -6/Cetus | Discovered exit to Factory (range 15) 8119 | -6/Cetus | Manufactured an Enhanced Grunt 8131 | -6/Cetus | Discovered new exit (range 15) 8136 | -6/Cetus | Spotted Cetus Guard 8136 | -6/Cetus | Spotted Cetus Guard 8144 | -6/Cetus | Manufactured an Enhanced Grunt 8162 | -6/Cetus | Spotted Cetus Guard 8164 | -6/Cetus | Spotted Cetus Guard 8169 | -6/Cetus | Manufactured an Enhanced Grunt 8172 | -6/Cetus | Allies destroyed Cetus Guard 8187 | -6/Cetus | Allies destroyed Cetus Guard 8188 | -6/Cetus | Found Prototype Device 8188 | -6/Cetus | Identified Exp. Thermal Shield 8195 | -6/Cetus | Discovered exit to Factory (range 15) 8198 | -6/Cetus | Met Revision 17 8212 | -6/Cetus | Lost 5 allies 8214 | -6/Cetus | Identified exit to Archives 8276 | -6/Cetus | Entered Archives 8276 | -6/Archives | Accompanied by 14 allies (A7) 8281 | -6/Archives | Received a hacking code to weaken MAIN.C 8281 | -6/Archives | Murdered A7 8283 | -6/Archives | Extracted ID and sensor layout for unrecognized location from A7's data core 8288 | -6/Archives | Attached Meta Core, gained temporary slots: Propulsion, Utility, Weapon 8299 | -6/Archives | Found Prototype Protection 8299 | -6/Archives | Identified Med. Regenerative Plating 8334 | -6/Archives | Lost 3 allies 8350 | -6/Archives | Discovered new exit (range 14) 8359 | -6/Archives | Discovered exit to Factory (range 16) 8362 | -6/Archives | Discovered new exit (range 16) 8402 | -6/Archives | Identified exit to Hub_04(d) 8743 | -6/Archives | Build established: Hacker-Mutant 8861 | -6/Archives | Entered Hub_04(d) 8861 | -6/Hub_04(d) | Accompanied by 10 allies 8863 | -6/Hub_04(d) | Loaded intel: 19 trap records 8865 | -6/Hub_04(d) | Loaded intel: 16 terminal locations 8866 | -6/Hub_04(d) | Loaded intel: 1 garrison access location 9054 | -6/Hub_04(d) | Network Hub disabled 9076 | -6/Hub_04(d) | Network Hub disabled 9116 | -6/Hub_04(d) | Lost 4 allies 9118 | -6/Hub_04(d) | Entered Factory 9118 | -5/Factory | Evolved 2 slots: Power x1, Propulsion x1 9128 | -5/Factory | Loaded intel: 8 recycling unit locations 9404 | -5/Factory | Unchained authorized (6S-H0T) 9418 | -5/Factory | Search patrols dispatched 9423 | -5/Factory | Build established: Hacker-Scout 9438 | -5/Factory | Manually triggered Chute Trap 9438 | -5/Factory | Sucked down chute 9438 | -5/Factory | Entered Waste 9441 | -5/Waste | Spotted C-40 Crusher 9444 | -5/Waste | Spotted C-40 Crusher 9455 | -5/Waste | Spotted C-40 Crusher 9463 | -5/Waste | Spotted C-40 Crusher 9463 | -5/Waste | Spotted C-40 Crusher 9464 | -5/Waste | Spotted C-40 Crusher 9477 | -5/Waste | Discovered new exit (range 14) 9483 | -5/Waste | Warlord forces began an assault 9497 | -5/Waste | Allies destroyed C-40 Crusher 9502 | -5/Waste | Allies destroyed C-40 Crusher 9509 | -5/Waste | Allies destroyed C-40 Crusher 9518 | -5/Waste | Allies destroyed C-40 Crusher 9525 | -5/Waste | Allies destroyed C-40 Crusher 9526 | -5/Waste | Identified exit to Factory 9539 | -5/Waste | Lost 4 allies 9565 | -5/Waste | Entered Factory 9565 | -5/Factory | Accompanied by 15 allies 9633 | -5/Factory | Identified exit to Upper Caves 9633 | -5/Factory | Central database locked down 9755 | -5/Factory | Learned location of Upper Caves (-5) 9769 | -5/Factory | Unchained authorized (6S-H0T) 9788 | -5/Factory | Loaded intel: 8 recycling unit locations 9791 | -5/Factory | Loaded intel: 78 trap records 9804 | -5/Factory | Identified exit to Factory 9822 | -5/Factory | Learned Extension garrison access intel 10123 | -5/Factory | Build established: Hacker-Sprinter 10318 | -5/Factory | Lost 3 allies 10450 | -5/Factory | Discovered exit to Factory (range 4) 10765 | -5/Factory | First assault squad dispatched 10932 | -5/Factory | Entered Upper Caves 11037 | -5/Upper Caves | Entered an active Warlord outpost 11038 | -5/Upper Caves | Learned Extension terminal intel 11059 | -5/Upper Caves | Acquired the password to a Derelict Tinkerer's latest research 11074 | -5/Upper Caves | Found Prototype Special Weapon 11085 | -5/Upper Caves | Discovered new exit (range 9) 11086 | -5/Upper Caves | Identified exit to Upper Caves 11087 | -5/Upper Caves | Learned Factory trap positions 11088 | -5/Upper Caves | Attracted the attention of an 0b10 outpost 11088 | -5/Upper Caves | Entered another Upper Caves area 11178 | -5/Upper Caves | Build established: Scavenger-Sprinter 11233 | -5/Upper Caves | Discovered new exit (range 10) 11239 | -5/Upper Caves | Identified exit to Warlord 11239 | -5/Upper Caves | Entered Warlord 11289 | -5/Warlord | Found Prototype Device 11289 | -5/Warlord | Identified Minesniffer Drone Bay 11292 | -5/Warlord | Identified Molecular Deconstructor 11317 | -5/Warlord | Rebuked by Warlord 11333 | -5/Warlord | Visited the Vortex Lab 11335 | -5/Warlord | Found Prototype Launcher 11335 | -5/Warlord | Identified Vortex Catalyst Activator 11337 | -5/Warlord | Found Prototype Energy Cannon 11337 | -5/Warlord | Identified Vortex Cannon 11339 | -5/Warlord | Warlord's base attacked by MAIN.C 11344 | -5/Warlord | Found Vortex Cannon 11437 | -5/Warlord | Found Prototype Hackware 11451 | -5/Warlord | Opened side exit 11456 | -5/Warlord | Discovered new exit (range 14) 11458 | -5/Warlord | Identified exit to Proximity Caves 11458 | -5/Warlord | Entered Proximity Caves 11460 | -4/Proximity Caves | Attracted the attention of an 0b10 checkpoint 11466 | -4/Proximity Caves | Found Alien Artifact 11543 | -4/Proximity Caves | Spotted B-86 Titan 11565 | -4/Proximity Caves | Spotter reported a threat 11607 | -4/Proximity Caves | Entered Factory 11607 | -4/Factory | Evolved 2 slots: Utility x2 11607 | -4/Factory | Identified System Mapper 11608 | -4/Factory | Identified exit to Upper Caves 11609 | -4/Factory | Loaded intel: 97 trap records 11674 | -4/Factory | Fabricated Adv. Phase Shifter (x2) 11677 | -4/Factory | Discovered new exit (range 4) 11678 | -4/Factory | Identified exit to Research 11747 | -4/Factory | Spotted B-86 Titan 11748 | -4/Factory | Loaded intel: 8 recycling unit locations 11776 | -4/Factory | Identified Dimensional Node Initializer 11776 | -4/Factory | Central database locked down 11787 | -4/Factory | Spotted B-86 Titan 11832 | -4/Factory | Unchained authorized (6S-H0T) 11880 | -4/Factory | Learned Testing trap positions 11916 | -4/Factory | Learned location of 2 exits from Factory 11941 | -4/Factory | Learned 2 Proximity Caves zone layouts 11954 | -4/Factory | Learned Research emergency access door positions 11955 | -4/Factory | Learned 8 Testing zone layouts 11964 | -4/Factory | Learned location of 1 exit from Quarantine 11969 | -4/Factory | Build established: Hacker-Scout 11981 | -4/Factory | Learned Testing emergency access door positions 11985 | -4/Factory | Manually triggered Chute Trap 11985 | -4/Factory | Sucked down chute 11985 | -4/Factory | Entered Waste 11986 | -4/Waste | Identified exit to Factory 11990 | -4/Waste | Spotted C-40 Crusher 11991 | -4/Waste | Spotted C-40 Crusher 11992 | -4/Waste | Spotted C-40 Crusher 11997 | -4/Waste | Spotted C-40 Crusher 11998 | -4/Waste | Spotted C-40 Crusher 11999 | -4/Waste | Spotted C-40 Crusher 12000 | -4/Waste | EMP discharged 12000 | -4/Waste | System corruption reached 10% 12001 | -4/Waste | Entered Factory 12026 | -4/Factory | 1 allies followed down the chute 12341 | -4/Factory | Build established: Hacker-Sprinter 12501 | -4/Factory | Search patrols dispatched 12509 | -4/Factory | Loaded intel: 8 recycling unit locations 12570 | -4/Factory | Repaired Adv. Cloaking Device 12605 | -4/Factory | Discovered exit to Upper Caves (range 15) 12653 | -4/Factory | Central database locked down 12684 | -4/Factory | Central database locked down 12740 | -4/Factory | Learned location of 1 exit from Proximity Caves 12761 | -4/Factory | Discovered exit to Research (range 5) 12816 | -4/Factory | Learned 4 Testing zone layouts 12838 | -4/Factory | Build established: Hacker-Scout 12943 | -4/Factory | Learned Research emergency access door positions 12992 | -4/Factory | Learned Research terminal intel 13033 | -4/Factory | Learned Quarantine trap positions 13089 | -4/Factory | Unchained authorized (GL-D0S) 13113 | -4/Factory | Entered Upper Caves 13113 | -4/Upper Caves | Accompanied by 1 ally 13114 | -4/Upper Caves | Identified exit to Upper Caves 13158 | -4/Upper Caves | Learned Research stockpile data 13188 | -4/Upper Caves | Learned location of 2 exits from Research 13223 | -4/Upper Caves | Learned Armory garrison access intel 13223 | -4/Upper Caves | Learned Armory security intel 13223 | -4/Upper Caves | Learned Research emergency access door positions 13232 | -4/Upper Caves | Entered another Upper Caves area 13232 | -4/Upper Caves | Accompanied by 1 ally 13283 | -4/Upper Caves | Discovered new exit (range 16) 13293 | -4/Upper Caves | Identified exit to Zhirov 13293 | -4/Upper Caves | Entered Zhirov 13293 | -4/Zhirov | Discovered new exit (range 3) 13294 | -4/Zhirov | Identified exit to Proximity Caves 13297 | -4/Zhirov | Met Zhirov 13301 | -4/Zhirov | Learned location of Command (-1) 13302 | -4/Zhirov | Zhirov requested help retrieving the SGEMP Prototype 13305 | -4/Zhirov | Found Alien Artifact 13305 | -4/Zhirov | Identified Integrated Dissipator 13305 | -4/Zhirov | Installed Integrated Dissipator, increased core heat dissipation (+20) 13313 | -4/Zhirov | Found Alien Artifact 13332 | -4/Zhirov | Entered Proximity Caves 13610 | -3/Proximity Caves | Build established: Hacker-Ninja 13672 | -3/Proximity Caves | Attracted the attention of an 0b10 checkpoint 13674 | -3/Proximity Caves | Entered Research 13674 | -3/Research | Evolved 2 slots: Power x1, Propulsion x1 13675 | -3/Research | Identified exit to Armory 13676 | -3/Research | Identified exit to Testing 13676 | -3/Research | Identified exit to Research 13679 | -3/Research | Loaded intel: 23 terminal locations 13792 | -3/Research | Loaded intel: 4 recycling unit locations 13816 | -3/Research | Spotted B-86 Titan 13874 | -3/Research | Revision forces began assault on 0b10 13900 | -3/Research | Repaired Adv. Power Amplifier 13959 | -3/Research | Build established: Hacker-Sprinter 13998 | -3/Research | Discovered exit to Testing (range 5) 14039 | -3/Research | Met up with Revision 17++ 14095 | -3/Research | Learned Research emergency access door positions 14153 | -3/Research | Learned location of 1 exit from Testing 14167 | -3/Research | Learned Access fabricator intel 14168 | -3/Research | Learned 4 Access zone layouts 14169 | -3/Research | Learned Research stockpile data 14170 | -3/Research | Learned Research stockpile data 14183 | -3/Research | Learned Quarantine garrison access intel 14198 | -3/Research | Found Quantum Capacitor 14228 | -3/Research | Discovered exit to Research (range 3) 14268 | -3/Research | Identified Transdimensional Reconstructor 14374 | -3/Research | Research terminal network offline 14378 | -3/Research | Build established: Hacker-Ninja 14388 | -3/Research | Repaired Broken Graviton Reactor 14419 | -3/Research | Entered Testing 14422 | -3/Testing | Loaded intel: 20 trap records 14451 | -3/Testing | Found Prototype Energy Gun 14462 | -3/Testing | Spotted Striker 14497 | -3/Testing | Spotted Alpha 7 14541 | -3/Testing | Found Prototype Device 14541 | -3/Testing | Identified 2N-1CE's Frost Array 14545 | -3/Testing | Identified Warp Gun 14576 | -3/Testing | Found Prototype Energy Cannon 14576 | -3/Testing | Identified Null Cannon 14601 | -3/Testing | Found Prototype Energy Cannon 14601 | -3/Testing | Identified Potential Cannon 14618 | -3/Testing | Learned 4 Quarantine zone layouts 14618 | -3/Testing | Protovariant out of control (PD-5TV9DSMMBH) 14624 | -3/Testing | Found Prototype Ballistic Cannon 14624 | -3/Testing | Identified Perforator 14659 | -3/Testing | Learned location of 1 exit from Testing 14669 | -3/Testing | Search patrols dispatched 14692 | -3/Testing | Learned 4 Testing zone layouts 14717 | -3/Testing | Learned 8 Research zone layouts 14729 | -3/Testing | Spotted PD-5TV9DSMMBH 14734 | -3/Testing | Learned Research emergency access door positions 14739 | -3/Testing | Learned location of 1 exit from Research 14740 | -3/Testing | Learned location of 1 exit from Research 14755 | -3/Testing | Found Prototype Device 14755 | -3/Testing | Identified System Purifier 14787 | -3/Testing | Learned Research scanalyzer intel 14914 | -3/Testing | Found Hellfire Missile Launcher 14924 | -3/Testing | Identified exit to Garrison 14924 | -3/Testing | Entered Garrison 14964 | -3/Garrison | Discovered exit to Research (range 52) 14964 | -3/Garrison | Discovered exit to Research (range 63) 14964 | -3/Garrison | Discovered exit to Research (range 43) 14965 | -3/Garrison | Garrison Relay disabled 14972 | -3/Garrison | Triggered checkpoint 14988 | -3/Garrison | Triggered checkpoint 14990 | -3/Garrison | Triggered checkpoint 15005 | -3/Garrison | Installed Relay Interface Framework 15089 | -3/Garrison | Lost 4 allies 15126 | -3/Garrison | Learned Research security intel 15200 | -3/Garrison | Entered Research 15200 | -2/Research | Accompanied by 6 allies 15200 | -2/Research | Evolved 2 slots: Utility x2 15201 | -2/Research | Identified exit to Access 15201 | -2/Research | Identified exit to Quarantine 15206 | -2/Research | Loaded intel: 6 scanalyzer locations 15236 | -2/Research | Loaded intel: 5 recycling unit locations 15378 | -2/Research | Unchained authorized (GL-D0S) 15416 | -2/Research | Discovered exit to Access (range 13) 15416 | -2/Research | Entered Quarantine 15419 | -2/Quarantine | Loaded intel: 20 trap records 15420 | -2/Quarantine | Loaded intel: 1 garrison access location 15429 | -2/Quarantine | Found Alien Slashing Weapon 15429 | -2/Quarantine | Identified Sigix Broadsword 15438 | -2/Quarantine | Cryocooling Duct disabled 15441 | -2/Quarantine | Cryocooling Duct disabled 15453 | -2/Quarantine | Ambient heat levels rising (+20) 15453 | -2/Quarantine | Non-combat units ordered to evacuate 15456 | -2/Quarantine | Ambient heat levels rising (+20) 15456 | -2/Quarantine | Combat units ordered to evacuate 15543 | -2/Quarantine | Found Alien Launcher 15556 | -2/Quarantine | Quarantine Guard activated 15588 | -2/Quarantine | Found Alien Artifact 15588 | -2/Quarantine | Identified Phase Redirector 15607 | -2/Quarantine | Identified Sigix Terminator 15630 | -2/Quarantine | Cryocooling Duct disabled 15633 | -2/Quarantine | Cryocooling Duct disabled 15645 | -2/Quarantine | Ambient heat levels rising (+20) 15648 | -2/Quarantine | Ambient heat levels rising (+20) 15665 | -2/Quarantine | Found Alien Artifact 15667 | -2/Quarantine | Identified Subatomic Replicator 15667 | -2/Quarantine | Used Subatomic Replicator to create Alien Artifact 15678 | -2/Quarantine | Found Alien Reactor 15707 | -2/Quarantine | Spotted Quarantine Guard 15754 | -2/Quarantine | Destroyed Quarantine Guard 15780 | -2/Quarantine | Spotted Quarantine Guard 15815 | -2/Quarantine | Spotted Quarantine Guard 15821 | -2/Quarantine | Destroyed Quarantine Guard 15834 | -2/Quarantine | Destroyed Quarantine Guard 15889 | -2/Quarantine | Identified Supercharged TR 15889 | -2/Quarantine | Identified Matter Drive 15929 | -2/Quarantine | Destroyed Quarantine Guard 15969 | -2/Quarantine | Build established: Hacker-Scout 15991 | -2/Quarantine | Spotted Quarantine Guard 16022 | -2/Quarantine | Destroyed Quarantine Guard 16054 | -2/Quarantine | Destroyed Quarantine Guard 16078 | -2/Quarantine | Destroyed Quarantine Guard 16100 | -2/Quarantine | Spotted Quarantine Guard 16176 | -2/Quarantine | Learned 4 Research zone layouts 16181 | -2/Quarantine | Destroyed Quarantine Guard 16230 | -2/Quarantine | Repaired Graviton Reactor 16247 | -2/Quarantine | Learned 8 Research zone layouts 16293 | -2/Quarantine | Repaired Adv. Power Amplifier 16308 | -2/Quarantine | Identified exit to Protoforge 16375 | -2/Quarantine | Repaired Exp. Propulsion Shielding 16379 | -2/Quarantine | Found Prototype Device 16387 | -2/Quarantine | Spotted Quarantine Guard 16399 | -2/Quarantine | Learned Research repair station intel 16401 | -2/Quarantine | Identified Exp. Focal Shield 16421 | -2/Quarantine | Spotted Quarantine Guard 16447 | -2/Quarantine | Learned 8 Section 7 zone layouts 16482 | -2/Quarantine | Destroyed Quarantine Guard 16505 | -2/Quarantine | Learned 8 Section 7 zone layouts 16548 | -2/Quarantine | Destroyed Quarantine Guard 16555 | -2/Quarantine | Met incapacitated Sigix Warrior 16555 | -2/Quarantine | Lockdown squad dispatched 16586 | -2/Quarantine | Destroyed Lightning 16606 | -2/Quarantine | Destroyed Lightning 16629 | -2/Quarantine | Found Alien Artifact 16629 | -2/Quarantine | Identified Phase Armor 16658 | -2/Quarantine | Found Prototype Hackware 16675 | -2/Quarantine | Identified Exp. Hacking Suite 16725 | -2/Quarantine | Spotted Fortress 16740 | -2/Quarantine | Discovered new exit (range 8) 16740 | -2/Quarantine | Spotted Quarantine Guard 16742 | -2/Quarantine | Spotted Quarantine Guard 16742 | -2/Quarantine | Entered Protoforge 16774 | -2/Protoforge | Discovered exit to Access (range 13) 16900 | -2/Protoforge | Learned 12 Access zone layouts 16974 | -2/Protoforge | Learned Research stockpile data 17022 | -2/Protoforge | Build established: Ninja 17031 | -2/Protoforge | Spotted Hotshot 17033 | -2/Protoforge | Superfortress began startup sequence 17036 | -2/Protoforge | Spotted Hotshot 17039 | -2/Protoforge | Learned Research emergency access door positions 17063 | -2/Protoforge | Spotted Overlord 17082 | -2/Protoforge | Spotted AP7-3 17082 | -2/Protoforge | Spotted AP7-3 17094 | -2/Protoforge | Learned Research terminal intel 17100 | -2/Protoforge | UFD initiated attack on Protoforge (Readiness: %1) 17100 | -2/Protoforge | Loaded intel: 3 recycling unit locations 17138 | -2/Protoforge | Optimus greeted in Protoforge 17141 | -2/Protoforge | Learned Access machine intel 17155 | -2/Protoforge | Spotted SKR-2 17155 | -2/Protoforge | Found Prototype Processor 17155 | -2/Protoforge | Identified Exp. Targeting Computer 17160 | -2/Protoforge | Initialized slip node 17176 | -2/Protoforge | Lost 5 allies 17178 | -2/Protoforge | Warped through subspace to slip node 17179 | -2/Protoforge | Optimus attacked Superfortress 17184 | -2/Protoforge | Spotted Hotshot 17197 | -2/Protoforge | Found Prototype Power Core 17197 | -2/Protoforge | Identified Cep. Zero-point Core 17199 | -2/Protoforge | Found Cep. Zero-point Core 17203 | -2/Protoforge | Found Cep. Zero-point Core 17205 | -2/Protoforge | Found Prototype Launcher 17205 | -2/Protoforge | Identified Ragnarok Missile Launcher 17208 | -2/Protoforge | Scraphulk reinforcements arrived? 17210 | -2/Protoforge | Scraphulk reinforcements arrived? 17210 | -2/Protoforge | Found Prototype Device 17210 | -2/Protoforge | Identified Cep. Antimissile System 17214 | -2/Protoforge | Found Prototype Storage 17214 | -2/Protoforge | Identified Cep. NT7 Matterbank 17216 | -2/Protoforge | Found Prototype Device 17216 | -2/Protoforge | Identified Exp. Force Field 17220 | -2/Protoforge | Lost 7 allies 17220 | -2/Protoforge | Found Prototype Device 17220 | -2/Protoforge | Identified Cep. Matter Streamer 17222 | -2/Protoforge | Found Prototype Device 17222 | -2/Protoforge | Identified Thermal Barrier 17224 | -2/Protoforge | Found Prototype Device 17224 | -2/Protoforge | Identified Exp. EM Disruption Field 17225 | -2/Protoforge | Learned 8 Access zone layouts 17231 | -2/Protoforge | Met 7R-MNS 17252 | -2/Protoforge | Found Prototype Ballistic Cannon 17252 | -2/Protoforge | Identified Cep. Helical Railcannon 17362 | -2/Protoforge | Forge Plexus network access discovered 17363 | -2/Protoforge | Found Crosscalibrator 17365 | -2/Protoforge | Spotted Immortal 17365 | -2/Protoforge | Spotted Immortal 17366 | -2/Protoforge | Spotted Decapitator 17366 | -2/Protoforge | Spotted Decapitator 17438 | -2/Protoforge | Found Exp. Jetlance 17458 | -2/Protoforge | Build established: Scavenger-Ninja 17480 | -2/Protoforge | Destroyed Immortal 17484 | -2/Protoforge | Found Exp. Cloaking Device 17532 | -2/Protoforge | Found Cep. Gyrokinetic System 17535 | -2/Protoforge | Found Cep. Combat Aerolev Unit 17553 | -2/Protoforge | Found Cep. Gyrokinetic System 17659 | -2/Protoforge | Found Cep. Miniperforator 17662 | -2/Protoforge | Found Faulty Cep. Miniperforator 17725 | -2/Protoforge | Destroyed V791-a 17735 | -2/Protoforge | Found Faulty Cep. Variable Chargecaster 17736 | -2/Protoforge | Found Faulty Cep. XC Strikerail 17737 | -2/Protoforge | Found Cep. XC Strikerail 17746 | -2/Protoforge | Found Faulty Cep. XC Strikerail 17748 | -2/Protoforge | Found Cep. Variable Chargecaster 17749 | -2/Protoforge | Found Cep. Variable Chargecaster 17761 | -2/Protoforge | Found Cep. Deflector Sword 17798 | -2/Protoforge | Spotted Decapitator 17798 | -2/Protoforge | Spotted Decapitator 17798 | -2/Protoforge | Spotted V684-l 17860 | -2/Protoforge | Spotted Striker 17894 | -2/Protoforge | Spotted Striker 17906 | -2/Protoforge | Spotted Executioner 17911 | -2/Protoforge | Spotted Executioner 17952 | -2/Protoforge | Spotted Executioner 17958 | -2/Protoforge | Destroyed Executioner 18029 | -2/Protoforge | Spotted Executioner 18031 | -2/Protoforge | Destroyed Executioner 18060 | -2/Protoforge | Spotted Executioner 18062 | -2/Protoforge | Spotted Striker 18122 | -2/Protoforge | Destroyed Executioner 18141 | -2/Protoforge | Spotted Striker 18169 | -2/Protoforge | Found Adv. Kinecellerator 18191 | -2/Protoforge | Spotted Executioner 18200 | -2/Protoforge | P-80 Master assimilated allied 02FBS-D 18220 | -2/Protoforge | Spotted Striker 18221 | -2/Protoforge | Spotted Striker 18240 | -2/Protoforge | Spotted Executioner 18273 | -2/Protoforge | Lost 15 allies 18346 | -2/Protoforge | Attached CPS modules to V402-w. 18432 | -2/Protoforge | Spotted Decapitator 18437 | -2/Protoforge | Allies destroyed Decapitator 18437 | -2/Protoforge | Allies destroyed Decapitator 18482 | -2/Protoforge | Attached CPS modules to V684-l. 18491 | -2/Protoforge | Destroyed V684-l 18496 | -2/Protoforge | Found Cep. Gyrokinetic System 18498 | -2/Protoforge | Found Cep. Gyrokinetic System 18503 | -2/Protoforge | Found Exp. Targeting Computer 18526 | -2/Protoforge | Build established: Scavenger-Sprinter 18547 | -2/Protoforge | Found Exp. Active Sensor Suite 18573 | -2/Protoforge | Spotted V393-r 18573 | -2/Protoforge | Spotted V094-e 18573 | -2/Protoforge | Spotted V210-v 18661 | -2/Protoforge | Spotted V493-v 18661 | -2/Protoforge | Spotted V470-l 18680 | -2/Protoforge | Destroyed V604-r 18699 | -2/Protoforge | Spotted V838-y 18704 | -2/Protoforge | Destroyed V470-l 18774 | -2/Protoforge | Spotted Executioner 18775 | -2/Protoforge | Destroyed Executioner 18776 | -2/Protoforge | Spotted Executioner 18796 | -2/Protoforge | Destroyed Executioner 18817 | -2/Protoforge | Destroyed 8 combat bots 18831 | -2/Protoforge | Build established: Scavenger-Scout 18859 | -2/Protoforge | Spotted V932-h 18863 | -2/Protoforge | Destroyed V932-h 18863 | -2/Protoforge | Destroyed V393-r 18874 | -2/Protoforge | Destroyed V094-e 18914 | -2/Protoforge | Allies destroyed V210-v 18936 | -2/Protoforge | Found Exp. Focal Shield 18943 | -2/Protoforge | Found Prototype Device 18943 | -2/Protoforge | Identified Adv. Particle Accelerator 18945 | -2/Protoforge | Found Med. Regenerative Plating 18963 | -2/Protoforge | Found Exp. Core Analyzer 18988 | -2/Protoforge | Found Hellfire Missile Launcher 19122 | -2/Protoforge | Spotted Decapitator 19122 | -2/Protoforge | Spotted Decapitator 19122 | -2/Protoforge | Spotted Decapitator 19122 | -2/Protoforge | Spotted Decapitator 19125 | -2/Protoforge | Destroyed Decapitator 19125 | -2/Protoforge | Destroyed Decapitator 19127 | -2/Protoforge | Destroyed Decapitator 19154 | -2/Protoforge | Destroyed V264-p 19167 | -2/Protoforge | Found Cep. Antigrav Storage Unit 19173 | -2/Protoforge | Found Cep. Matter Streamer 19175 | -2/Protoforge | Found Cep. Chromion Battery 19185 | -2/Protoforge | Found Prototype Launcher 19185 | -2/Protoforge | Identified Adv. Micro-nuke Launcher 19287 | -2/Protoforge | Found Faulty Cep. Rapid Grenade Launcher 19294 | -2/Protoforge | Found Faulty Cep. Rapid Grenade Launcher 19404 | -2/Protoforge | Spotted AP7-3 19407 | -2/Protoforge | Spotted AP7-3 19535 | -2/Protoforge | Destroyed AP7-3 19541 | -2/Protoforge | Destroyed AP7-3 19551 | -2/Protoforge | Found Cep. NT7 Matterbank 19637 | -2/Protoforge | Additional patrols dispatched to research labs 19640 | -2/Protoforge | Found Transdimensional Reconstructor 19647 | -2/Protoforge | Found Cep. Nanofilaments [Tensile] 19647 | -2/Protoforge | Installed Cep. Nanofilaments [Tensile], 3 resistances modified: KI +20%, TH -10%, I +20% 19688 | -2/Protoforge | Found Cep. Cloak Mesh 19690 | -2/Protoforge | Found Faulty Cep. Cloak Mesh 19700 | -2/Protoforge | Found Cep. Dimensional Manipulator 19730 | -2/Protoforge | Found Femtoactuators 19731 | -2/Protoforge | Found Cep. Weapon Articulator 19733 | -2/Protoforge | Found Cep. Networked Targeting System 19740 | -2/Protoforge | Found Faulty Femtoactuators 19741 | -2/Protoforge | Found Cep. Weapon Articulator 19745 | -2/Protoforge | Found Faulty Exp. Force Booster 19752 | -2/Protoforge | Found Faulty Exp. Force Booster 19854 | -2/Protoforge | Found Exp. Jetlance 19855 | -2/Protoforge | Found Cep. Disintegration Ray 19858 | -2/Protoforge | Found Cep. Plasma Driver 19921 | -2/Protoforge | Found Cep. Biometal Exoskeleton 19965 | -2/Protoforge | Found Faulty Cep. Biometal Exoskeleton 19991 | -2/Protoforge | Found Cep. Zero-point Core 19995 | -2/Protoforge | Found Cep. Helical Railcannon 20002 | -2/Protoforge | Found Cep. Helical Railcannon 20048 | -2/Protoforge | Found Cep. Zero-point Core 20050 | -2/Protoforge | Found Faulty Cep. Zero-point Core 20052 | -2/Protoforge | Found Cep. Zero-point Core 20077 | -2/Protoforge | Found Cep. Network Penetrator 20187 | -2/Protoforge | Found Cep. Network Penetrator 20188 | -2/Protoforge | Found Exp. Active Sensor Suite 20360 | -2/Protoforge | Spotted Executioner 20367 | -2/Protoforge | Destroyed Executioner 20386 | -2/Protoforge | Spotted Striker 20389 | -2/Protoforge | Spotted Striker 20390 | -2/Protoforge | Destroyed Striker 20393 | -2/Protoforge | Destroyed Striker 20417 | -2/Protoforge | Destroyed 9 combat bots 20429 | -2/Protoforge | Spotted Executioner 20434 | -2/Protoforge | Destroyed Executioner 20470 | -2/Protoforge | Spotted Executioner 20479 | -2/Protoforge | Lost 10 allies 20510 | -2/Protoforge | Destroyed 10 combat bots 20512 | -2/Protoforge | Spotted Executioner 20512 | -2/Protoforge | Spotted Striker 20521 | -2/Protoforge | Destroyed Executioner 20540 | -2/Protoforge | Spotted Executioner 20541 | -2/Protoforge | Spotted Striker 20543 | -2/Protoforge | Destroyed Striker 20546 | -2/Protoforge | Destroyed Executioner 20575 | -2/Protoforge | Spotted Executioner 20584 | -2/Protoforge | Lost 3 allies 20585 | -2/Protoforge | Spotted Striker 20585 | -2/Protoforge | Destroyed Striker 20586 | -2/Protoforge | Spotted Executioner 20587 | -2/Protoforge | Spotted Striker 20595 | -2/Protoforge | Destroyed Striker 20621 | -2/Protoforge | Spotted Hotshot 20623 | -2/Protoforge | Spotted Hotshot 20626 | -2/Protoforge | Destroyed 15 combat bots 20634 | -2/Protoforge | Destroyed Hotshot 20637 | -2/Protoforge | Destroyed Hotshot 20679 | -2/Protoforge | UFD reported confirmed Drillbomb installation 20739 | -2/Protoforge | UFD reported confirmed Drillbomb installation 20748 | -2/Protoforge | UFD reported confirmed Drillbomb installation 20788 | -2/Protoforge | Destroyed Striker 20795 | -2/Protoforge | Spotted Executioner 20800 | -2/Protoforge | UFD reported confirmed Drillbomb installation 20802 | -2/Protoforge | Spotted Striker 20836 | -2/Protoforge | Lost 3 allies 20869 | -2/Protoforge | Spotted Striker 20871 | -2/Protoforge | Destroyed Striker 20876 | -2/Protoforge | Spotted Executioner 20876 | -2/Protoforge | Spotted Executioner 20876 | -2/Protoforge | Destroyed Executioner 20894 | -2/Protoforge | UFD reported confirmed Drillbomb installation 20919 | -2/Protoforge | Destroyed 7 combat bots 20923 | -2/Protoforge | Lost 3 allies 21005 | -2/Protoforge | UFD reported confirmed Drillbomb installation 21043 | -2/Protoforge | Found Faulty Cep. RG22 Armor 21044 | -2/Protoforge | Found Faulty Cep. Energy Mantle 21053 | -2/Protoforge | Found Cep. Energy Mantle 21054 | -2/Protoforge | Found Cep. Combat Aerolev Unit 21057 | -2/Protoforge | Found Faulty Cep. RG22 Armor 21059 | -2/Protoforge | Found Faulty Cep. RG22 Armor 21079 | -2/Protoforge | Destroyed Executioner 21127 | -2/Protoforge | UFD reported confirmed Drillbomb installation 21141 | -2/Protoforge | UFD reported confirmed Drillbomb installation 21164 | -2/Protoforge | Found Cep. Fieldthrust Drive 21184 | -2/Protoforge | Found Cep. Fieldthrust Drive 21239 | -2/Protoforge | Found Cep. Chromion Battery 21249 | -2/Protoforge | Spotted Striker 21258 | -2/Protoforge | Spotted Striker 21273 | -2/Protoforge | Destroyed Striker 21282 | -2/Protoforge | Destroyed Striker 21295 | -2/Protoforge | UFD reported confirmed Drillbomb installation 21317 | -2/Protoforge | Spotted Striker 21319 | -2/Protoforge | Spotted Executioner 21341 | -2/Protoforge | Spotted Striker 21341 | -2/Protoforge | Spotted Executioner 21375 | -2/Protoforge | Spotted Striker 21399 | -2/Protoforge | Destroyed Striker 21417 | -2/Protoforge | Spotted Executioner 21425 | -2/Protoforge | Spotted Executioner 21432 | -2/Protoforge | Spotted Executioner 21437 | -2/Protoforge | Spotted Executioner 21446 | -2/Protoforge | Destroyed Executioner 21457 | -2/Protoforge | Destroyed Executioner 21460 | -2/Protoforge | Found Exp. Core Analyzer 21466 | -2/Protoforge | Spotted Striker 21475 | -2/Protoforge | Spotted Striker 21482 | -2/Protoforge | Destroyed 16 combat bots 21487 | -2/Protoforge | Destroyed Striker 21490 | -2/Protoforge | Spotted Executioner 21490 | -2/Protoforge | Destroyed Executioner 21491 | -2/Protoforge | Spotted Executioner 21515 | -2/Protoforge | Destroyed Executioner 21526 | -2/Protoforge | Spotted Striker 21527 | -2/Protoforge | Spotted Executioner 21528 | -2/Protoforge | Destroyed Executioner 21532 | -2/Protoforge | Destroyed Striker 21550 | -2/Protoforge | Spotted Executioner 21550 | -2/Protoforge | Destroyed Executioner 21552 | -2/Protoforge | Destroyed Executioner 21552 | -2/Protoforge | Spotted Striker 21554 | -2/Protoforge | Destroyed Striker 21555 | -2/Protoforge | Spotted Executioner 21578 | -2/Protoforge | Spotted Executioner 21582 | -2/Protoforge | Spotted Executioner 21586 | -2/Protoforge | Destroyed Executioner 21589 | -2/Protoforge | Destroyed Executioner 21616 | -2/Protoforge | Destroyed 34 combat bots 21622 | -2/Protoforge | UFD reported confirmed Drillbomb installation 21623 | -2/Protoforge | UFD began Drillbomb countdown 21632 | -2/Protoforge | Entered Access 21632 | -1/Access | Evolved 2 slots: Utility x2 21634 | -1/Access | Loaded intel: 122 machine locations 21635 | -1/Access | Loaded intel: 4 fabricator locations 21659 | -1/Access | Spotted B-99 Colossus 21661 | -1/Access | Identified exit to Command 21701 | -1/Access | Repaired Electron Diverter 21724 | -1/Access | Build established: Hacker-Ninja 21774 | -1/Access | Entered Command 21791 | -1/Command | Spotted Striker 21859 | -1/Command | Spotted Executioner 21859 | -1/Command | Spotted Executioner 21921 | -1/Command | Spotted M Guard 21921 | -1/Command | Spotted M Guard 21921 | -1/Command | Spotted Combat Programmer 21921 | -1/Command | Spotted Combat Programmer 21958 | -1/Command | Met MAIN.C 21963 | -1/Command | 0b10 Conduit disabled 21982 | -1/Command | Destroyed MAIN.C Shell 21983 | -1/Command | MAIN.C activated Command garrisons 21993 | -1/Command | Destroyed MAIN.C 21995 | -1/Command | Discovered new exit (range 35) 21995 | -1/Command | Discovered new exit (range 80) 21995 | -1/Command | Extracted map data and part IDs from MAIN.C's data core 22026 | -1/Command | Found Exp. System Purifier 22224 | -1/Command | All MAIN.C guards destroyed 22275 | -1/Command | Build established: Scavenger-Ninja 22432 | -1/Command | Spotted B-99 Colossus 22469 | -1/Command | Spotted Executioner 22474 | -1/Command | Spotted Executioner 22743 | -1/Command | Found Exp. ECM Suite 22807 | -1/Command | Found Spectral Analyzer 22809 | -1/Command | Found Exp. Armor Integrity Analyzer 22810 | -1/Command | Found Vortex Chain Reactor 22811 | -1/Command | Found Exp. Focal Shield 22822 | -1/Command | Warped through subspace to slip node 22822 | -1/Command | Discovered new exit (range 5) 22825 | -1/Command | Identified exit to Access_0 22825 | -1/Command | Entered Access_0 22826 | -1/Access_0 | Met Architect 22854 | -1/Access_0 | A6 warped into view 22855 | -1/Access_0 | Subspace Access Node disabled 22865 | -1/Access_0 | Subspace Access Node disabled 22879 | -1/Access_0 | Found Core Expander 22879 | -1/Access_0 | Installed Core Expander, added new Weapon slot 22914 | -1/Access_0 | A5 warped into view 22926 | -1/Access_0 | Destroyed A5 22939 | -1/Access_0 | Subspace Access Node disabled 22982 | -1/Access_0 | Subspace Access Node disabled 22983 | -1/Access_0 | A4 warped into view 23062 | -1/Access_0 | Destroyed A8 23073 | -1/Access_0 | Singularity Gate disabled 23162 | -1/Access_0 | Found Sigix Broadsword 23272 | -1/Access_0 | A3 warped into view 23281 | -1/Access_0 | Lost 4 parts (1p2n1u) 23341 | -1/Access_0 | Lost 4 parts (2n2w) 23349 | -1/Access_0 | Crushed by falling debris 23351 | -1/Access_0 | Found Hpw. Transdimensional Reconstructor 23357 | -1/Access_0 | Found Exp. ECM Suite 23437 | -1/Access_0 | Core integrity fell below 50% 23448 | -1/Access_0 | Destroyed A3 23457 | -1/Access_0 | Core integrity fell below 20% 23458 | -1/Access_0 | Destroyed A2 23461 | -1/Access_0 | Warped through subspace to slip node 23461 | -1/Access_0 | Discovered new exit (range 8) 23464 | *** | Establishing 0b11! Last Messages --------------- 23455_ A2 suffers critical hit (Impale). 23456_ Penetrated by Slug. 23456_ Slug penetrates Wall. 23457_ Quantum Shear penetrates Wall. 23458_ A2 suffers critical hit (Impale). 23458_ A2: "We cannot be defeated!" 23458_ A2 destroyed. 23459_ Cep. Antigrav Storage Unit destroyed. 23459_ Quantum Shear penetrates Earth. 23459_ Penetrated by Quantum Shear. 23461_ Acquired Hpw. Transdimensional Reconstructor. 23461_ Warped through subspace, drawn to slip node. 23461_ EXIT=FOUND 23462_ A0_RES: I have more important things to do than play hide-and-seek. Deal with this piece of junk if it returns. [Achievement: Unfinished Business] [Achievement: 100k Club] Map ----- +----------------------------------------------------+ | | | | | | | | | | | | | | | | | | | | | | | | | | | | | | | | | ?????????????????????????????????????????????????? | | ?????????????????????????????????????????????????? | | ?????????????????????????????????????????????????? | | ?????????????????????????????????????????????????? | | ?????????????????????????????????????????????????? | | ?????????????????????????????????????????????????? | | ????????????????????????###??????????????????????? | | ???????????????????????## ##?????????????????????? | | ???????????????????????# #?????????????????????? | | ???????????????????????# @ #?????????????????????? | | ??????????????????????## #?????????????????????? | | ??????????????????????# #?????????????????????? | | ??????????????????????# ##?????????????????????? | | ??????????????????????## #?????????????????????? | | ??????????????????????# #?????????????????????? | | ??????????????????????# ##?????????????????????? | | ??????????????????????# < #?????????????????????? | | ??????????????????????# ##?????????????????????? | | ??????????????????????## #??????????????????????? | | ???????????????????????####??????????????????????? | | ?????????????????????????????????????????????????? | | ?????????????????????????????????????????????????? | | ?????????????????????????????????????????????????? | | ?????????????????????????????????????????????????? | | ?????????????????????????????????????????????????? | | ?????????????????????????????????????????????????? | | ?????????????????????????????????????????????????? | | ?????????????????????????????????????????????????? | | ?????????????????????????????????????????????????? | | ?????????????????????????????????????????????????? | | ?????????????????????????????????????????????????? | | ?????????????????????????????????????????????????? | | ?????????????????????????????????????????????????? | | ?????????????????????????????????????????????????? | +----------------------------------------------------+ Best States ------------- Heat Dissipation 169 Energy Generation 93 Energy Capacity 460 Matter Stores 300 Matter Capacity 300 Sight Range 24 Robot Scan Range 20 Terrain Scan Density 10 ECM Strength 6 Cloak Strength 9 Power Amplification 30 Additional Mass Support 30 Corruption Block 19 Armor Coverage 450 Resistance: KI 50 Resistance: TH 50 Resistance: I 20 Core Shielding 20 Propulsion Shielding 90 Utility Shielding 66 Weapon Shielding 90 Point Defense Rating 480 Projectile Deflection 15 Melee Speed Boost 50 Phase Shifting 10 Evasion (%) 81 Targeting Accuracy 32 Core Analysis 8 Armor Integrity Analysis 50 Recoil Reduction 2 Kinecelleration 50 Offensive Hacking 50 Defensive Hacking 14 Relay Coupler Types 1 Relay Coupler Value 29 Authchip Count 1 Item Schematics ----------------- Com. Battery | -8/Recycling | Hacked Exp. Signal Interpreter | -6/Factory | Scanalyzed Imp. Gyrokinetic Inverter | -6/Factory | Downloaded Stasis Canceller | -6/Factory | Hacked Nuclear Pulse Array | -6/Factory | Scanalyzed Nanosword | -6/Factory | Scanalyzed CPS Tube | -6/Factory | Scanalyzed Gravity Neutralizer | -6/Factory | Hacked Adv. Hacking Suite | -6/Factory | Hacked Adv. Thermal Shield | -6/Hub_04(d) | Hacked Biomechanical Wings | -6/Hub_04(d) | Hacked Mic. Fission Core | -5/Factory | Hacked Adv. Cooling System | -5/Factory | Hacked Lyr. Heavy Armor Plating | -5/Factory | Hacked Imp. Phase Shifter | -5/Factory | Hacked Imp. Plasma Cutter | -5/Factory | Hacked Prc. Energy Filter | -5/Factory | Scanalyzed Field Propulsion Array | -4/Factory | Hacked Com. Tesla Bomb Launcher | -4/Factory | Hacked Quantum Reactor | -4/Factory | Hacked Adv. Weapon Cycler | -4/Factory | Hacked Adv. Coolant Injector | -4/Factory | Hacked Graphene Brace | -4/Factory | Hacked Adv. Cloaking Device | -4/Factory | Scanalyzed Adv. ECM Suite | -4/Factory | Scanalyzed Mic. Antimatter Reactor | -4/Factory | Hacked Biometal Medium Treads | -4/Factory | Hacked Imp. Armor Integrity Analyzer | -4/Factory | Hacked Imp. Fusion Compressor | -4/Factory | Scanalyzed Nuclear Pulse Thruster | -4/Factory | Scanalyzed Railgun | -4/Factory | Hacked HERF Cannon | -4/Factory | Hacked System Restoration Module | -4/Factory | Scanalyzed Cld. Field Propulsion Drive | -4/Factory | Scanalyzed Assault Drone Bay | -4/Zhirov | Free Exp. Heat Sink | -4/Zhirov | Free Exp. Optical Array | -4/Zhirov | Free Imp. Arc Thrower | -4/Zhirov | Free Lgt. Particle Reactor | -3/Research | Hacked Imp. Quantum Reactor | -3/Research | Hacked Exp. Biometal Leg | -3/Research | Hacked Enh. Nova Cannon | -3/Research | Hacked Cmb. Linear Gravjet | -3/Research | Hacked Biometal Heavy Treads | -3/Research | Hacked Adv. Heavy Siege Treads | -3/Research | Hacked Vortex Chain Reactor | -3/Research | Hacked Com. HERF Cannon | -3/Research | Hacked Nova Cannon | -3/Research | Hacked Centrium Leg | -3/Research | Hacked Exp. Propulsion Shielding | -3/Research | Scanalyzed Quantum Capacitor | -3/Research | Scanalyzed Hvy. Dispersion Rifle | -3/Testing | Hacked Hvy. Hardcell Cannon | -3/Testing | Hacked Quantum Shading Machine | -3/Testing | Scanalyzed Hvy. Tesla Rifle | -3/Testing | Archive Imp. Diametric Drive | -2/Research | Scanalyzed Cld. Impulse Thruster | -2/Research | Scanalyzed Micro-nuke Launcher | -2/Research | Scanalyzed Com. Mass Driver | -2/Quarantine | Archive Com. Linear Accelerator | -2/Quarantine | Archive Enh. Biometal Leg | -2/Quarantine | Archive Adv. Thermal Defense Suite | -2/Quarantine | Archive Exp. Core Analyzer | -2/Quarantine | Archive Exp. Hacking Suite | -2/Quarantine | Scanalyzed Enh. Gamma Bomb Array | -2/Protoforge | Archive Adv. Matter Compressor | -2/Protoforge | Archive Tactical Quantum Warhead | -2/Protoforge | Archive Enh. Armored Medium Treads | -2/Protoforge | Archive Thermal Barrier | -2/Protoforge | Archive Gui. Micro-nuke Launcher | -2/Protoforge | Archive Imp. Matter Compressor | -2/Protoforge | Archive Hds. Centrium Leg | -2/Protoforge | Archive Imp. Q-thruster | -2/Protoforge | Archive Hvy. Neutron Cannon | -2/Protoforge | Archive Adv. Plasma Rifle | -2/Protoforge | Archive Cld. Proton Cannon | -2/Protoforge | Archive Centrium Greatsword | -2/Protoforge | Archive Exp. Target Analyzer | -2/Protoforge | Archive Hvy. Wave Gun | -2/Protoforge | Archive Robot Schematics ------------------ H-66 Slayer | -6/Extension | Hacked B-60 Warrior | -5/Factory | Hacked R-06 Scavenger | -2/Quarantine | Archive E-15 Imp | -2/Quarantine | Archive A-02 Transporter | -2/Protoforge | Archive G-73 Enforcer | -2/Protoforge | Archive K-01 Serf | -2/Protoforge | Archive Fabricated ------------ Stasis Canceller | x2 | -6/Factory Adv. Phase Shifter | x2 | -4/Factory | Preloaded Repaired ---------- Flight Unit | 10% | -10/Materials Cesium-ion Thruster | 44% | -6/Factory Adv. Sensor Array | 8% | -6/Factory Exp. Signal Interpreter | 99% | -6/Factory | Broken Nanosword | 16% | -6/Factory | Broken Adv. Cloaking Device | 6% | -4/Factory Adv. Power Amplifier | 29% | -3/Research Graviton Reactor | 99% | -3/Research | Broken Graviton Reactor | 31% | -2/Quarantine Adv. Power Amplifier | 6% | -2/Quarantine Exp. Propulsion Shielding | 58% | -2/Quarantine Electron Diverter | 68% | -1/Access Studied --------- Cesium-ion Thruster | -6/Factory | Hacked Rocket Launcher | -6/Factory | Hacked Xenon Bombardment Thruster | -6/Factory | Hacked Imp. Datajack | -6/Factory | Hacked Field Propulsion Array | -4/Factory | Hacked Matter Neutralizer | -4/Factory | Hacked Nuclear Pulse Thruster | -4/Factory | Hacked Mic. Fission Core | -4/Factory | Hacked Field Propulsion Drive | -4/Factory | Hacked Imp. Remote Datajack | -4/Factory | Hacked Impulse Thruster Array | -3/Research | Hacked Micro-nuke Launcher | -3/Research | Hacked Alien Tech Used ----------------- Integrated Dissipator Sigix Broadsword Phase Redirector Subatomic Replicator Phase Armor Dimensional Node Initializer Supercharged TR Concept Nanofilaments [Tensile] Matter Drive Transdimensional Reconstructor Core Expander High-powered Transdimensional Reconstructor Achievements -------------- 100k Club Deadly Precision Do Not Disturb Longdome?! Red Leader SUBSUB Unfinished Business Challenges ------------ None Game ------ Seed AntimatterGhostDeconstructor Manual? 0 Play Time 10:20:20 Cumulative 602.9 hours Start 2025.11.02 @ 10:35:02 End 2025.11.03 @ 18:53:06 Sessions 5 Manual Loads 0 Difficulty Rogue Special Mode None Game No. 249 Rogue 249 Adventurer 0 Explorer 0 Win Type 1 Total 44 Types 19/4/6/2/6/1/0/3/0/3 Lore% 96 Gallery% 88 Achievement% 72 Wizard Run 0 Options --------- Layout 1 ASCII 0 Keyboard 0 Movement Numpad Keybinds 0 Fullscreen 1 Font 24/Smallcaps Map View 50x35 Zoom Use 0% Tactical HUD 1 Map Filters NONE Filters NONE Steam 1 RUN: 3cc7323b-7629-4c02-bb15-39a67b3697c8